Cogmind - Beta 10.2 @@@ ROGUE MODE // 2020.11.16 @ 17:57:52 Player: Compact Tesla Bomb Launcher Result: Heading to fleet! Performance ------------- Evolutions (9) 4500 Regions Visited (35) 7000 Robots Destroyed (1464) 7320 Value Destroyed (94415) 94415 Prototype IDs (127) 2540 Alien Tech Used (15) 3000 Bonus (125056) 125056 TOTAL SCORE: 243831 Bonus ------- Triggered High Security 1000 Triggered Max Security 2000 High Alert Combat Kills 74470 Follower Combat Kills 1479 Network Hubs Disabled 400 Aligned with FarCom 300 Met Data Miner 300 Destroyed Z-Imprinter 1000 Triggered Deep Caves Wall 500 Exposed GOLEM Chamber 500 Found Hidden Lab 3000 Used Core Reset Matrix 3000 Recovered Sigix Corpse 1000 Destroyed MAIN.C Guards 500 Met MAIN.C 5000 Destroyed MAIN.C Shell 5000 Destroyed MAIN.C 10000 Met Architect 300 Destroyed A8 300 Destroyed A6 400 Destroyed A5 500 Destroyed A4 700 Destroyed A3 800 Destroyed A2 1000 Destroyed Architect 15000 Win 3000 Friendly Fire -6393 Cogmind --------- Core Integrity 875/1600 Matter 300/300 Energy 756/770 System Corruption 0% Temperature Cool (8) Movement Treading (185) Ox1 Location To Fleet Rendezvous Parts ------- > --- POWER (3) -------- Zero-point Reactor Zero-point Reactor Zero-point Reactor > --- PROPULSION (4) --- Armored Heavy Treads High-density Centrium Heavy Treads > --- UTILITY (15) ----- Desublimator High-capacity Storage Unit High-capacity Storage Unit Experimental Optical Array Experimental Targeting Computer Experimental Targeting Computer Experimental Targeting Computer Experimental Target Analyzer Advanced Armor Integrity Analyzer Advanced Kinecellerator Experimental Weapon Cycler Experimental Powered Armor Experimental Powered Armor Experimental Powered Armor AEGIS Remote Shield > --- WEAPON (4) ------- Multirail Multirail Multirail Multirail > --- INVENTORY (20) --- Armored Heavy Treads Experimental Coolant Injector Superbattery (2000) Experimental Matter Compressor (500) Experimental Matter Compressor (500) Experimental Matter Compressor (500) Experimental Target Analyzer Matter Filter Advanced Kinecellerator Experimental Weapon Cycler Long-range Tractor Beam Mobile Refinery Mk. CCLXVII Graviton Cannon Omega Cannon Sigix Terminator Sigix Corpse Peak State ------------ > --- POWER ------------ Zero-point Reactor Zero-point Reactor Zero-point Reactor > --- PROPULSION ------- Armored Heavy Treads High-density Centrium Heavy Treads > --- UTILITY ---------- Desublimator High-capacity Storage Unit High-capacity Storage Unit Experimental Optical Array Experimental Targeting Computer Experimental Targeting Computer Experimental Targeting Computer Experimental Target Analyzer Advanced Armor Integrity Analyzer Advanced Kinecellerator Experimental Weapon Cycler Experimental Powered Armor Experimental Powered Armor Experimental Powered Armor AEGIS Remote Shield > --- WEAPON ----------- Multirail Multirail Multirail Multirail > --- INVENTORY -------- Zero-point Reactor Armored Heavy Treads Experimental Coolant Injector Superbattery Experimental Matter Compressor Experimental Matter Compressor Experimental Matter Compressor Experimental Target Analyzer Matter Filter Advanced Kinecellerator Experimental Weapon Cycler Long-range Tractor Beam Mobile Refinery Mk. CCLXVII High-powered Transdimensional Reconstructor Graviton Cannon Omega Cannon Sigix Terminator [Rating: 252] Favorites ----------- Power Reinforced Quantum Reactor Engine Reinforced Ion Engine Power Core Light Nuclear Core Reactor Reinforced Quantum Reactor Propulsion Armored Heavy Treads Treads Armored Heavy Treads Leg Assembled Alloy Leg Wheel Armored Huge Wheel Hover Unit Zionite Glidesys II Utility High-capacity Storage Unit Device AEGIS Remote Shield Storage High-capacity Storage Unit Processor Experimental Targeting Computer Hackware System Mapper Protection Heavy Regenerative Plating Artifact Phase Armor Weapon Compact Tesla Bomb Launcher Energy Gun Sigix Quantum Sheargun Energy Cannon Assembled Focal Cannon Ballistic Gun Multirail Ballistic Cannon Advanced Assault Cannon Launcher Compact Tesla Bomb Launcher Special Weapon Mining Laser Impact Weapon Core Stripper Slashing Weapon Phasing Sabre Piercing Weapon Makeshift Spear Special Melee Weapon Advanced Datajack Build | -11 -10 -10 -9 -9 -9 -8 -8 -7 -7 -7 -7 -7 -7 -6 -6 -6 -6 -6 -6 -5 -5 -5 -5 -5 -5 -4 -4 -4 -3 -2 -2 -2 -1 -1 -1 ------- Run | Scr Mat Min Mat Min Exi Min Mat Fac Was Fac Low Low Dat Pro Fac Low Low Zio Dee Pro Fac Ext Cet Arc Hub Fac Arm Lab Res Res Qua Sec Acc Com Ac0 Slots Evolved 17 | . . . 2 . . . 2 2 . . . . . . 2 . . . . . 2 . . . . 2 . . 2 2 . . 1 . . Power 1 | . . . . . . . . . . . . . . . . . . . . . . . . . . 1 . . . . . . . . . Propulsion 2 | . . . 1 . . . . . . . . . . . . . . . . . . . . . . . . . 1 . . . . . . Utility 13 | . . . . . . . 2 2 . . . . . . 2 . . . . . 2 . . . . 1 . . 1 2 . . 1 . . Weapon 1 | . . . 1 . . . . . . . . . . . . . . . . . . . . . . . . . . . . . . . . Parts Attached 1118 | 8 22 5 15 . 2 5 13 9 13 38 14 15 15 20 9 26 16 23 74 11 8 5 13 8 9 6 29 6 5 20 93 115 109 229 110 Power 60 | 1 . 1 2 . . . . 1 1 1 . . . 1 . 1 . 2 4 . . . 2 . . . . . . 1 4 10 7 15 6 Engine 6 | 1 . 1 2 . . . . 1 . . . . . 1 . . . . . . . . . . . . . . . . . . . . . Core 5 | . . . . . . . . . 1 . . . . . . 1 . 2 1 . . . . . . . . . . . . . . . . Reactor 49 | . . . . . . . . . . 1 . . . . . . . . 3 . . . 2 . . . . . . 1 4 10 7 15 6 Propulsion 80 | 2 7 2 3 . 1 2 2 . 1 4 1 1 2 1 . 1 3 1 3 4 . 4 1 1 . 1 . . 1 1 6 5 2 13 4 Treads 66 | 2 3 2 3 . 1 2 2 . 1 3 1 1 1 1 . 1 3 1 . . . 4 1 1 . . . . 1 1 6 5 2 13 4 Leg 5 | . . . . . . . . . . . . . 1 . . . . . 2 2 . . . . . . . . . . . . . . . Wheel 8 | . 4 . . . . . . . . 1 . . . . . . . . . 2 . . . . . 1 . . . . . . . . . Hover 1 | . . . . . . . . . . . . . . . . . . . 1 . . . . . . . . . . . . . . . . Flight . | . . . . . . . . . . . . . . . . . . . . . . . . . . . . . . . . . . . . Utility 635 | 2 4 . 3 . 1 . 5 4 5 10 13 10 6 13 3 17 6 15 39 6 7 1 8 2 6 5 24 4 3 15 51 72 77 130 68 Device 381 | 2 . . 1 . . . 2 . 3 2 11 9 4 13 1 13 4 4 21 6 4 . 4 1 1 2 16 2 3 13 25 39 54 76 45 Storage 84 | . 1 . . . 1 . 2 2 1 . 1 . . . . 2 1 9 10 . . . . . . 1 3 1 . . 6 5 14 24 . Processor 23 | . . . . . . . . 1 . . . . . . . . . 1 1 . . . . 1 . . . . . . 1 . 4 9 5 Hackware 15 | . . . . . . . 1 . . 4 . . . . 1 . . . . . 3 . . . 1 1 1 . . 1 . . . 1 1 Protection 126 | . 3 . 2 . . . . 1 1 4 1 1 2 . 1 2 1 1 7 . . 1 4 . 4 1 4 1 . 1 17 25 5 19 17 Artifact 6 | . . . . . . . . . . . . . . . . . . . . . . . . . . . . . . . 2 3 . 1 . Weapon 343 | 3 11 2 7 . . 3 6 4 6 23 . 4 7 5 6 7 7 5 28 1 1 . 2 5 3 . 5 2 1 3 32 28 23 71 32 Energy Gun 27 | 2 2 . 4 . . . . . . . . . . . 1 . 1 . 5 . . . . 1 . . . . . . . . . 3 8 Energy Cannon 45 | . 2 . . . . . . . . 3 . . . . 2 1 2 . 7 . . . . . . . . . . . 4 10 10 4 . Ballistic Gun 126 | 1 3 2 2 . . 3 4 2 4 13 . 2 2 3 1 3 2 1 3 . . . . 1 1 . . . . . 15 3 1 35 19 Ballistic Cannon 15 | . . . . . . . . . 1 . . . . . . 2 . 2 3 . . . . . . . . . . . . 2 . 1 4 Launcher 101 | . . . 1 . . . 2 1 . 3 . 2 2 2 . 1 1 1 4 1 1 . 1 2 2 . 5 . 1 2 12 13 12 28 1 Special Weapon 4 | . 4 . . . . . . . . . . . . . . . . . . . . . . . . . . . . . . . . . . Impact Weapon 1 | . . . . . . . . . . . . . . . . . . . . . . . . . . . . . . . 1 . . . . Slashing Weapon 11 | . . . . . . . . . 1 3 . . 1 . 2 . . 1 3 . . . . . . . . . . . . . . . . Piercing Weapon 11 | . . . . . . . . . . 1 . . 2 . . . 1 . 3 . . . 1 . . . . 2 . 1 . . . . . Special Melee Weapon 2 | . . . . . . . . 1 . . . . . . . . . . . . . . . 1 . . . . . . . . . . . Unidentified Prototypes 61 | . . . . . . . 1 . . . . . 1 . 1 . 1 2 9 . 1 . 3 2 1 . 2 1 1 2 10 7 1 9 6 Parts Lost 54 | . . . . . . . . . . . . . . 1 2 7 . . 13 2 1 . . . . . . . . 1 8 . . 6 13 Power 2 | . . . . . . . . . . . . . . . . 1 . . . . . . . . . . . . . . 1 . . . . Propulsion 11 | . . . . . . . . . . . . . . . 1 2 . . 3 1 . . . . . . . . . . 2 . . 1 1 Utility 22 | . . . . . . . . . . . . . . 1 . 2 . . 5 1 . . . . . . . . . . 5 . . 4 4 Weapon 19 | . . . . . . . . . . . . . . . 1 2 . . 5 . 1 . . . . . . . . 1 . . . 1 8 Highest Loss Streak 7 | . . . . . . . . . . . . . . 1 2 6 . . 7 1 1 . . . . . . . . 1 4 . . 2 3 Average Slot Usage (%) 86 | . 99 100 100 100 100 98 99 95 99 95 100 99 92 91 88 72 85 79 87 92 93 94 89 88 87 84 86 82 78 81 80 79 85 84 91 Core 1 | . . . . . . . . . 6 2 . . . . . 5 6 4 2 . . . . . . . . . . . . . . . . Reactor 6 | . . . . . . . . . . 4 7 7 7 5 . . . . 3 6 5 5 5 5 5 5 5 4 4 6 7 7 8 10 10 Treads 10 | . 20 22 33 33 33 33 27 23 23 15 23 23 22 23 19 5 11 18 9 . . 9 12 11 11 6 5 4 4 6 8 7 7 6 6 Leg 1 | . . . . . . . . . . . . . . . . . . . 7 16 16 6 . . . . . . . . . . . . . Device 11 | . . . 1 11 . . 8 4 20 . 15 14 12 14 12 18 12 1 8 16 17 18 11 11 9 9 9 14 8 11 21 15 13 11 14 Storage 20 | . 2 14 11 11 21 22 18 20 17 23 23 23 23 23 20 20 19 27 21 25 22 22 22 22 21 19 19 14 17 16 19 21 24 23 9 Processor 3 | . . . . . . . . 2 . . . . . . . . . . . . . . . . 5 5 5 4 4 4 . 4 3 4 21 Hackware 2 | . . . . . . . 8 7 7 15 . . . . 4 6 6 6 6 . 9 5 5 5 5 9 10 9 8 11 . . . . . Protection 8 | . 24 14 9 . . . . 4 . 6 7 7 7 7 6 4 4 1 4 . . 2 10 11 6 6 6 4 8 7 6 9 10 11 9 Energy Gun 1 | . 8 3 4 33 33 31 . . . . . . . . 1 . . 4 . . . . . . . . . . . . . . . . . Energy Cannon 2 | . 13 3 . . . . . . . . . . . . 2 2 . . 6 18 16 16 16 16 16 15 14 4 4 3 1 3 1 . . Ballistic Gun 6 | . 4 21 27 . . . 27 22 15 21 23 23 7 6 9 3 13 8 3 . . . . . . 5 . . . . 9 3 . 3 13 Launcher 4 | . . . . . . . . . . . . . 1 6 2 . . 4 2 6 4 5 4 4 4 . 5 4 4 8 2 4 12 8 . Naked Turns . | . . . . . . . . . . . . . . . . . . . . . . . . . . . . . . . . . . . . Heaviest Build 383 | 11 45 45 52 52 83 84 89 129 121 144 137 149 164 132 167 197 187 262 252 164 165 172 182 182 189 203 216 186 204 223 305 302 383 361 313 Greatest Support 185 | 40 40 40 66 66 69 69 69 69 69 69 65 71 71 71 63 20 76 76 84 84 94 90 110 110 110 110 28 30 28 150 165 185 180 145 185 Greatest Overweight (x) 54 | . 4 4 . . 1 1 1 1 1 5 2 2 2 1 8 40 7 13 54 16 1 2 1 1 1 7 7 46 7 7 6 2 2 4 2 Average Overweight (x) 2 | . 1 2 . . . 1 1 1 1 2 2 2 1 1 1 7 4 2 3 1 1 1 1 1 1 4 6 4 6 4 1 1 1 1 1 Largest Inventory Capacity 62 | 4 12 12 12 12 20 20 20 28 28 28 28 28 28 28 28 48 46 62 56 28 28 28 28 28 28 28 28 28 28 28 36 36 60 60 48 Average Capacity 34 | 4 5 12 12 12 19 20 20 24 22 28 28 28 28 28 28 30 39 47 40 28 28 28 28 28 28 28 28 20 28 28 31 36 40 42 24 Most Carried 60 | 4 7 11 12 12 20 20 20 25 25 28 28 28 28 28 28 31 45 58 55 28 28 28 28 28 28 28 28 28 27 28 36 36 60 55 48 Average Carried 31 | 1 4 9 11 12 17 19 18 21 18 27 27 28 26 26 26 23 33 43 33 27 26 27 27 27 27 27 26 15 25 26 28 34 39 38 24 Final Capacity 60 | 4 12 12 12 12 20 20 20 28 28 28 28 28 28 28 28 38 46 56 28 28 28 28 28 28 28 28 28 28 28 28 36 36 60 52 36 Final Carried 55 | 4 7 10 12 12 19 16 20 25 24 27 28 28 26 28 26 29 45 55 28 28 25 28 28 28 27 28 28 28 26 22 33 36 55 51 28 Class Distribution -------------------- 16% | Hauler-Mutant 14% | Alien-Mutant 13% | Alien-Bomber 12% | Scavenger-Bomber 9% | Hauler-Tank 3% | Hauler-Skirmisher 3% | Alien-Tank 3% | Hacker-Mutant Dominant Class ---------------- Mutant | -10/Materials Mutant | -10/Mines Scavenger-Tank | -9/Materials Gunner | -9/Mines Hauler-Gunner | -9/Exiles Hauler-Skirmisher | -8/Mines Hauler-Skirmisher | -8/Materials Hauler-Skirmisher | -7/Factory Hauler-Skirmisher | -7/Waste Hauler-Skirmisher | -7/Factory Hauler-Tank | -7/Lower Caves Hauler-Tank | -7/Lower Caves Hauler-Mutant | -7/Data Miner Hauler-Mutant | -6/Proximity Caves Hauler-Mutant | -6/Factory Hauler-Mutant | -6/Lower Caves Hauler-Mutant | -6/Lower Caves Hauler-Mutant | -6/Zion Hauler-Mutant | -6/Deep Caves Hauler-Golem | -5/Proximity Caves Hacker-Golem | -5/Factory Scavenger-Skirmisher | -5/Extension Scavenger-Tank | -5/Cetus Scavenger-Tank | -5/Archives Hauler-Skirmisher | -5/Hub_04(d) Hacker-Skirmisher | -4/Factory Hacker-Golem | -4/Armory Hacker-Mutant | -4/Lab Hacker-Assassin | -3/Research Wizard-Assassin | -2/Research Generator-Tank | -2/Quarantine Alien-Mutant | -2/Section 7 Alien-Mutant | -1/Access Alien-Bomber | -1/Command Scavenger-Bomber | -1/Access_0 Resources | -11 -10 -10 -9 -9 -9 -8 -8 -7 -7 -7 -7 -7 -7 -6 -6 -6 -6 -6 -6 -5 -5 -5 -5 -5 -5 -4 -4 -4 -3 -2 -2 -2 -1 -1 -1 ----------- Run | Scr Mat Min Mat Min Exi Min Mat Fac Was Fac Low Low Dat Pro Fac Low Low Zio Dee Pro Fac Ext Cet Arc Hub Fac Arm Lab Res Res Qua Sec Acc Com Ac0 Matter Collected 40075 | 263 196 82 211 12 10 . 174 155 449 1030 325 269 224 399 329 423 306 141 1870 218 220 187 170 100 150 99 638 . 55 1196 3010 3479 4578 16212 2895 Remotely 16404 | 141 . . . . . . . . 429 . . . . . . . . . 387 . . . . . . . 297 . . 515 2169 2226 2897 5775 1568 Salvage Created 105583 | 129 413 75 251 . . 60 260 155 1261 1513 218 229 86 287 276 226 318 . 1728 391 772 511 500 603 546 313 914 . 431 5346 9899 11831 16049 45146 4846 Parts 3703 | 6 28 6 15 . . 1 17 5 26 69 8 15 7 16 7 13 11 . 38 21 34 14 17 25 21 8 23 . 19 230 357 443 473 1481 249 Haulers Intercepted 12 | . 2 . 3 . . . 1 . . 2 . . . . . . . . . . 1 . . . . . . . . 2 . . 1 . . Recyclers Shooed 15 | . . . 1 . . . 1 . . 1 . . . . . . . . . . . 2 . . 2 . . . . 2 . . 2 4 . Parts Field Recycled 27 | . . . . . . . . . . . . . . . . . . . . . . . . . . . . . . 2 14 11 . . . Retrieved Matter 653 | . . . . . . . . . . . . . . . . . . . . . . . . . . . . . . 45 241 367 . . . Parts Self-Destructed 73 | . . . . . . . . . . . 8 13 . 14 . 13 6 3 . 16 . . . . . . . . . . . . . . . Prevented . | . . . . . . . . . . . . . . . . . . . . . . . . . . . . . . . . . . . . Kills | -11 -10 -10 -9 -9 -9 -8 -8 -7 -7 -7 -7 -7 -7 -6 -6 -6 -6 -6 -6 -5 -5 -5 -5 -5 -5 -4 -4 -4 -3 -2 -2 -2 -1 -1 -1 ------- Run | Scr Mat Min Mat Min Exi Min Mat Fac Was Fac Low Low Dat Pro Fac Low Low Zio Dee Pro Fac Ext Cet Arc Hub Fac Arm Lab Res Res Qua Sec Acc Com Ac0 Combat Hostiles Destroyed 1305 | . 8 1 5 . . 1 5 1 3 19 5 12 1 9 3 8 3 . 59 10 15 5 7 4 7 2 16 . 6 54 127 134 174 552 49 Melee 6 | . . . . . . . . . . . . . . . 1 . . . 5 . . . . . . . . . . . . . . . . Guns 165 | . 3 1 2 . . . 3 1 1 13 5 6 . 3 2 6 1 . . . . . . . 1 1 . . . . 5 . . 63 48 Cannons 61 | . 4 . . . . . . . 2 . . . . . . . . . 4 5 8 5 4 4 4 1 7 . 1 7 . . 5 . . AOE 600 | . 1 . 3 . . . 2 . . 6 . 6 . 6 . 2 2 . 48 5 7 . 3 . 2 . 8 . 4 24 79 71 75 246 . Classes Destroyed 32 | 2 5 2 . . . 1 . . 4 3 1 . . . . . 1 . 3 . 1 1 . . . . 1 . . . 4 . 1 2 . Worker 37 | . . 1 . . . . 2 . . 6 . . . . . . . . . . 2 . . . 2 1 . . 1 10 . . . 12 . Builder 20 | . . . . . . . . . . 2 . . . . . . . . . . . . . . 3 . . . 2 5 . . 8 . . Tunneler 7 | 2 1 1 . . . . . . . . . . . . . . . . . . . . . . . . . . . 1 . . 2 . . Hauler 12 | . 2 . 3 . . . 1 . . 2 . . . . . . . . . . 1 . . . . . . . . 2 . . 1 . . Recycler 23 | 1 . . . . . . 1 1 . 5 . . . . 1 . . . . . . 2 . . . 1 . . . 2 . . 1 8 . Carrier 6 | . . . . . . . . . . . . . . . . . . . . . . . . . . . . . . . . . 5 1 . Minesweeper 3 | . . . . . . . . . . . 1 . . . . 1 1 . . . . . . . . . . . . . . . . . . Mechanic 38 | . . . . . . . . . . . . . . . . . . . . . . . . . . . . . . 1 6 8 9 14 . Operator 13 | . 1 . . . . . . . . . . . . . . . . . . . . . . 9 . . . . . 1 . . . 2 . Watcher 31 | . 2 . . . . . . . . 1 . . . . . . . . . . 2 1 1 . 2 . 4 . 1 5 1 . 4 7 . Swarmer 135 | . 3 . 3 . . . 3 . . 4 3 11 . . . 6 . . . . 5 . . . . . . . . 13 5 . 5 74 . Saboteur 63 | . . . . . . . . . . . . . . . . . . . . . 1 . . . . . . . . . 9 11 12 30 . Grunt 404 | . 5 . 1 . . . . . . 7 2 . . 7 . 1 3 . . 7 6 1 4 . 3 2 6 . 4 27 36 48 67 167 . Brawler 71 | . . . . . . . . . . 1 . . . . . . . . . . 1 . 1 . . . . . . . 11 15 12 30 . Duelist 86 | . . . . . . . . . . . . . . . . . . . . . 1 . 1 . . . 4 . . 2 4 17 18 39 . Protector 53 | . . . . . . . . . . . . . . . . . . . . . . . . . . . 1 . . 1 12 5 11 23 . Sentry 38 | . . 1 1 . . . 2 1 . 4 . . . . 1 1 . . . . 1 3 . 4 4 . 2 . 2 2 . 2 . 7 . Demolisher 13 | . . . . . . . . . . . . . . . . . . . . . . . . . . . 1 . . . . . . 12 . Specialist 11 | . . . . . . . . . . . . . . . . . . . . . . . . . . . . . . . . . . 11 . Hunter 88 | . . . . . . 1 . . . 1 . 1 . 1 2 . . . . 2 . . . . . . . . . 2 11 9 9 49 . Programmer 141 | . . . . . . . . . . 2 . . . 1 . . . . . 1 . . . . . . 2 . . 7 24 16 19 69 . Behemoth 7 | . . . . . . . . . . . . . . . . . . . . . . 1 . . . . . . . . . . 2 4 . Compactor 3 | . . . . . . . . . 3 . . . . . . . . . . . . . . . . . . . . . . . . . . Cetus Guard 1 | . . . . . . . . . . . . . . . . . . . . . . . 1 . . . . . . . . . . . . S7 Guard 2 | . . . . . . . . . . . . . . . . . . . . . . . . . . . . . . . . 2 . . . M Guard 2 | . . . . . . . . . . . . . . . . . . . . . . . . . . . . . . . . . . 2 . Enhanced Grunt 30 | . . . . . . . . . . . . . 1 . . . . . . . . . . . . . . . . . . . . . 29 Enhanced Sentry 5 | . . . . . . . . . . . . . . . . . . . . . . . . . . . . . . . . . . . 5 Enhanced Hunter 8 | . . . . . . . . . . . . . . . . . . . . . . . . . . . . . . . . . . . 8 Combat Programmer 2 | . . . . . . . . . . . . . . . . . . . . . . . . . . . . . . . . . . 2 . Investigator 7 | . . . . . . . . . . . . . . . . . . . . . . . . . . . . . . . 2 1 3 1 . Striker 32 | . . . . . . . . . . . . . . . . . . . . . . . . . . . . . . . 5 4 7 16 . Executioner 39 | . . . . . . . . . . . . . . . . . . . . . . . . . . . . . . . 9 5 12 13 . Alpha 7 2 | . . . . . . . . . . . . . . . . . . . . . . . . . . . . . . . . . . 2 . Fortress 1 | . . . . . . . . . . . . . . . . . . . . . . . . . . . . . . . 1 . . . . Z-Technician 4 | . . . . . . . . . . . . . . . . . . . 4 . . . . . . . . . . . . . . . . Decomposer 1 | . . . . . . . . . . . . . . . . . 1 . . . . . . . . . . . . . . . . . . Samaritan 2 | . . . . . . . . . . . . . . . . . 2 . . . . . . . . . . . . . . . . . . Assembler 2 | . . . . . . . . . . . . . . . . . . . 2 . . . . . . . . . . . . . . . . Assembled 38 | . . . . . . . . . . . . . . . . . . . 38 . . . . . . . . . . . . . . . . Golem 20 | . . . . . . . . . . . . . . . . . . . 20 . . . . . . . . . . . . . . . . Surgeon 2 | . . . . . . . . . 1 1 . . . . . . . . . . . . . . . . . . . . . . . . . Thug 6 | . . . . . . . . . 6 . . . . . . . . . . . . . . . . . . . . . . . . . . Savage 1 | . . . . . . . . . . . . . . . . . 1 . . . . . . . . . . . . . . . . . . Butcher 3 | . . . . . . . . . 2 . . . . . . . . . . . . . 1 . . . . . . . . . . . . Martyr 2 | . . . . . . . . . 2 . . . . . . . . . . . . . . . . . . . . . . . . . . Best Kill Streak 52 | 2 3 1 6 . . 1 5 1 2 6 2 4 1 4 3 4 3 . 52 7 6 5 6 4 6 2 4 . 4 23 44 46 37 45 3 Combat Bots Only 45 | . 3 1 4 . . 1 3 1 2 4 2 4 1 4 2 4 3 . 34 7 5 3 6 1 4 2 4 . 4 13 41 43 30 45 3 Max Kills in Single Turn 12 | 1 1 1 3 . . 1 4 1 1 2 1 2 1 3 1 2 2 . 11 3 2 1 3 1 4 1 2 . 2 5 12 8 4 9 2 Gunslinging 1 | . . . . . . . . . . . . . . . . . . . . . . . . . . . . . . . 1 . . 1 1 Exploded 12 | . 1 . 2 . . . 2 . . 2 . 2 . 3 . 2 2 . 11 3 2 . 3 . 1 . 2 . 2 3 12 7 4 9 . Melee 1 | . . . . . . . . . . . . . . . 1 . . . 1 . . . . . . . . . . . . . . . . Uniques/NPCs Destroyed 12 | . . . . . . . . . . . . . 1 . . . . . 1 . . . 1 . . . . . . . . . . 2 7 Data Miner (-7/Data Miner) Z-Imprinter (-6/Deep Caves) A7 (-5/Cetus) MAIN.C Shell (-1/Command) MAIN.C (-1/Command) A8 (-1/Access_0) A6 (-1/Access_0) A5 (-1/Access_0) A2 (-1/Access_0) A4 (-1/Access_0) A3 (-1/Access_0) Architect (-1/Access_0) Combat | -11 -10 -10 -9 -9 -9 -8 -8 -7 -7 -7 -7 -7 -7 -6 -6 -6 -6 -6 -6 -5 -5 -5 -5 -5 -5 -4 -4 -4 -3 -2 -2 -2 -1 -1 -1 -------- Run | Scr Mat Min Mat Min Exi Min Mat Fac Was Fac Low Low Dat Pro Fac Low Low Zio Dee Pro Fac Ext Cet Arc Hub Fac Arm Lab Res Res Qua Sec Acc Com Ac0 Damage Taken 43240 | . 221 51 97 . . 83 160 32 . 874 106 365 684 495 1134 858 58 . 2257 675 331 229 51 244 331 724 537 . 128 1814 4258 2275 3570 12534 8064 Core 2575 | . 31 18 . . . 21 42 . . 104 . 39 90 51 17 119 . . 252 85 85 . . 50 . 42 49 . 13 74 220 183 208 231 551 Absorbed by Shields 29575 | . . . . . . . 36 15 . 10 39 142 24 158 169 111 . . . . . 10 11 . . . 55 . 121 1731 3707 1954 3366 10163 7753 Reduced by Siege Mode 2226 | . . . . . . . . . . . . . . . . . . . . . . . . . . . . . . 26 294 189 240 1059 418 Core Remaining (%) 76 | 100 . 80 . . . 94 92 . . . . . . 59 . . . . . 44 . . . . 86 . . 92 99 . . 46 . . 54 Volleys Fired 2090 | 15 50 6 16 . . 3 14 5 15 68 15 15 . 27 18 47 22 . 73 16 37 20 21 26 22 11 71 47 21 118 115 153 190 536 277 Largest 4 | 1 2 2 3 . . 3 3 3 3 3 3 3 . 2 3 3 4 . 4 4 4 3 3 3 3 4 3 1 1 2 4 4 4 4 4 Hottest 345 | 40 100 40 135 . . 135 74 74 101 90 81 81 . 51 131 95 166 . 263 114 114 80 80 80 85 110 80 25 80 98 193 193 267 290 345 Shots Fired 4841 | 15 78 12 42 . . 9 38 13 45 171 45 37 . 30 23 54 25 . 113 43 99 48 59 67 50 33 141 47 21 141 284 282 394 1360 1022 Gun 2192 | 15 28 12 39 . . 9 36 12 30 155 45 33 . 18 21 32 3 . 37 . . . . . 2 4 . . . . 124 14 . 535 988 Cannon 920 | . 44 . . . . . . . 15 9 . . . . 2 19 18 . 46 31 92 43 57 65 45 29 119 47 13 70 20 45 47 14 30 Launcher 1723 | . . . 3 . . . 2 1 . 7 . 4 . 12 . 3 4 . 30 12 7 5 2 2 3 . 22 . 8 71 140 223 347 811 4 Special 6 | . 6 . . . . . . . . . . . . . . . . . . . . . . . . . . . . . . . . . . Kinetic 1902 | 13 4 12 27 . . . 36 12 45 155 45 33 . 18 20 44 6 . 51 . . . . . 2 4 . . . . 124 14 . 454 783 Thermal 830 | . 50 . . . . . . . . 9 . . . . 2 7 5 . 23 31 92 43 57 65 45 29 119 47 13 70 20 45 47 11 . Explosive 327 | . . . 3 . . . 2 1 . 7 . 4 . 12 . 3 4 . 30 12 7 5 2 2 3 . 16 . 4 2 31 15 44 118 . Electromagnetic 1463 | 2 24 . 12 . . 9 . . . . . . . . 1 . 10 . 9 . . . . . . . 6 . 4 69 109 208 303 693 4 Slashing 319 | . . . . . . . . . . . . . . . . . . . . . . . . . . . . . . . . . . 84 235 Robot Hit Streak 93 | 11 14 14 15 . . 7 24 11 10 13 12 6 . 6 13 7 9 . 10 5 7 13 20 19 23 26 16 . 21 17 24 24 40 93 71 Robot Miss Streak 7 | 1 3 . 1 . . 2 3 . 5 3 4 6 . 3 5 7 2 . 3 3 2 3 2 1 1 1 3 . 3 2 2 3 5 5 5 Penetration Max 2 | . . . . . . . 1 . . 1 . . . . . . . . 1 . . . . . . . . . . . . . . 2 1 Secondary Targets 26 | . . . . . . . . . . . . . . . . . . . . . . . . . . . . . . . 2 . . 15 9 Max Gunslinging Chain 2 | . . . . . . . . . . . . . . . . . . . . . . . . . . . . . . . 1 . . 2 1 Shots Hit Robots 3146 | 14 45 12 32 . . 8 27 12 61 102 37 26 9 20 19 33 17 . 95 19 30 30 44 45 26 10 50 . 7 59 128 130 255 850 894 Core Hits 4506 | 8 15 5 20 . . 1 13 5 21 72 23 30 3 36 20 25 14 . 211 22 31 18 26 24 25 6 48 . 21 131 426 411 381 1591 823 Critical Hits 295 | . . . . . . . . 1 1 2 . . . . . . 1 . 6 . . . . . . . . . . . 1 . . 58 225 Critical Kills 43 | . . . . . . . . 1 1 2 . . . . . . 1 . 3 . . . . . . . . . . . . . . 13 22 Critical Parts Destroyed 147 | . . . . . . . . . . . . . . . . . . . 2 . . . . . . . . . . . . . . 37 108 Melee Attacks 140 | . . . . . . . . 1 23 8 . . 21 . 3 . 6 16 47 . . . 4 1 . . . . . . 10 . . . . Kinetic 10 | . . . . . . . . . . . . . . . . . . . . . . . . . . . . . . . 10 . . . . Impact . | . . . . . . . . . . . . . . . . . . . . . . . . . . . . . . . . . . . . Slashing 92 | . . . . . . . . . 23 5 . . 13 . 3 . . 16 32 . . . . . . . . . . . . . . . . Piercing 36 | . . . . . . . . . . 3 . . 8 . . . 6 . 15 . . . 4 . . . . . . . . . . . . Sneak Attacks 41 | . . . . . . . . 1 23 2 . . 1 . . . 4 . 5 . . . 4 1 . . . . . . . . . . . Combat Hostiles . | . . . . . . . . . . . . . . . . . . . . . . . . . . . . . . . . . . . . Follow-up Attacks 3 | . . . . . . . . . . . . . 3 . . . . . . . . . . . . . . . . . . . . . . Damage Inflicted 259989 | 124 829 131 632 15 . 103 673 237 3423 3189 408 693 391 1339 814 614 985 . 9731 1387 2852 1858 2529 2224 2624 478 4771 . 1349 10006 25068 25551 30408 98299 26254 Guns 50209 | 119 213 88 275 . . 103 479 184 499 2151 408 283 . 204 340 381 37 . 489 . . . . . 25 52 . . . . 407 . . 18192 25280 Cannons 17020 | . 531 . . . . . . . 392 . . . . . . 31 222 . 523 524 1465 1399 1905 2019 1194 389 1830 . 288 1745 596 239 957 . 771 Explosions 185763 | . 73 . 341 . . . 169 39 . 639 . 410 . 1135 443 202 352 . 6643 863 1387 459 366 205 1405 . 2941 . 1061 8228 23767 25312 29395 79725 203 Melee 6161 | . . . . . . . . . 2532 232 . . 391 . . . 374 . 2076 . . . 258 . . . . . . . 298 . . . . Ramming 836 | 5 12 43 16 15 . . 25 14 . 167 . . . . 31 . . . . . . . . . . 37 . . . 33 . . 56 382 . Kinetic 44785 | 91 27 88 184 . . . 479 184 891 2151 408 283 . 204 319 412 15 . 744 . . . . . 25 52 . . . . 705 . . 15918 21605 Thermal 34418 | . 604 . . . . . . . . . . . . . 21 . 22 . 141 524 1465 1399 1905 2019 1194 389 1923 . 288 2696 3341 4564 3150 8713 60 Explosive 42926 | . . . 341 . . . 169 39 . 639 . 410 . 1135 443 202 352 . 6643 863 1387 459 366 205 588 . 2399 . 816 400 6749 2392 3925 12004 . Electromagnetic 124441 | 28 186 . 91 . . 103 . . . . . . . . . . 222 . 127 . . . . . 817 . 449 . 245 6877 14273 18595 23277 59008 143 Impact . | . . . . . . . . . . . . . . . . . . . . . . . . . . . . . . . . . . . . Slashing 11207 | . . . . . . . . . 2532 232 . . 231 . . . . . 1492 . . . . . . . . . . . . . . 2274 4446 Piercing 1376 | . . . . . . . . . . . . . 160 . . . 374 . 584 . . . 258 . . . . . . . . . . . . Highest Corruption 34 | . . . . . . . 2 . . 1 1 1 1 1 . . . . 1 1 . . . . 2 . 2 2 . 5 34 19 . . . Average Corruption 3 | . . . . . . . 2 . . 1 1 1 1 1 . . . . 1 1 . . . . 2 . 1 2 . 3 17 15 . . . Corruption Purged 1 | . . . . . . . . . . . . 1 . . . . . . . . . . . . . . . . . . . . . . . Effects 231 | . . . . . . . . . . 4 5 2 1 7 . . . . 7 4 . . . . . . 5 12 . 17 63 104 . . . Message Errors 39 | . . . . . . . . . . . 1 1 1 2 . . . . 2 2 . . . . . . 3 4 . 7 4 12 . . . Matter Fused 26 | . . . . . . . . . . . . . . . . . . . . . . . . . . . . . . 1 6 19 . . . Heat Flow Errors 23 | . . . . . . . . . . . . . . . . . . . . . . . . . . . 1 5 . 2 4 11 . . . Energy Discharges 19 | . . . . . . . . . . 3 1 . . 3 . . . . 2 . . . . . . . . 2 . 1 4 3 . . . Parts Rejected 1 | . . . . . . . . . . . . . . . . . . . . . . . . . . . . . . . 1 . . . . Data Loss (minor) 27 | . . . . . . . . . . . 2 1 . 2 . . . . 2 2 . . . . . . 1 1 . 3 6 7 . . . Data Loss (major) 2 | . . . . . . . . . . . . . . . . . . . . . . . . . . . . . . . . 2 . . . Misfires 6 | . . . . . . . . . . . . . . . . . . . . . . . . . . . . . . . 3 3 . . . Misdirections 11 | . . . . . . . . . . . . . . . . . . . . . . . . . . . . . . . 2 9 . . . Targeting Errors 64 | . . . . . . . . . . 1 1 . . . . . . . 1 . . . . . . . . . . 3 27 31 . . . Weapon Failures 13 | . . . . . . . . . . . . . . . . . . . . . . . . . . . . . . . 6 7 . . . Overload Shots . | . . . . . . . . . . . . . . . . . . . . . . . . . . . . . . . . . . . . Overflow Damage 5832 | . 21 . . . . . 9 . 486 13 . . . 4 107 21 100 . 165 68 330 59 44 127 204 4 354 . 39 556 314 637 691 1436 43 Projectiles 765 | . 21 . . . . . . . . . . . . . . . 29 . . . 18 59 24 116 29 4 116 . 39 135 . 54 78 . 43 Explosions 4321 | . . . . . . . 9 . . . . . . 4 107 21 . . 98 68 312 . . 11 175 . 238 . . 421 314 583 609 1351 . Melee 746 | . . . . . . . . . 486 13 . . . . . . 71 . 67 . . . 20 . . . . . . . . . 4 85 . Knockbacks 12 | . . . . . . . . . . 2 . . . . . . . . . . . . . . . . . . . 1 . . 1 2 6 Impact 6 | . . . . . . . . . . 2 . . . . . . . . . . . . . . . . . . . 1 . . 1 2 . Kinetic 6 | . . . . . . . . . . . . . . . . . . . . . . . . . . . . . . . . . . . 6 Secondary . | . . . . . . . . . . . . . . . . . . . . . . . . . . . . . . . . . . . . Self-Inflicted Damage 3456 | . 20 . . . . . . . . . . 39 . 40 78 25 . . 181 83 85 . . . 99 . 36 . . 322 340 435 229 1230 214 Shots 216 | . 1 . . . . . . . . . . 2 . 1 1 2 . . 5 3 1 . . . 1 . 2 . . 23 20 40 14 95 5 Rammed 55 | 9 3 4 2 1 . . 2 3 . 7 . . . . 1 . . . . . . . . . . 2 . . . 1 . . 5 15 . Targets Rammed 61 | 9 5 5 2 1 . . 2 3 . 8 . . . . 2 . . . . . . . . . . 2 . . . 1 . . 5 16 . Kicked . | . . . . . . . . . . . . . . . . . . . . . . . . . . . . . . . . . . . . Crushed 6 | . 2 1 . . . . . . . 1 . . . . 1 . . . . . . . . . . . . . . . . . . 1 . Highest Temperature 350 | . 199 18 176 . . 215 45 48 187 329 . . 2 42 80 76 180 . 339 350 91 220 238 54 84 35 134 254 72 317 324 279 225 199 240 Average Temperature 71 | . 60 9 63 . . 113 14 28 83 59 . . 2 13 32 32 54 . 98 137 22 82 130 19 29 19 25 103 33 85 111 73 32 59 67 Received Heat Transfer 2816 | . 90 27 27 . . . 35 12 . 143 42 . 86 101 63 64 27 . 397 99 48 51 18 36 45 156 54 . 16 92 113 125 112 440 297 Effects 9 | . . . . . . . . . . . . . . . . . . . 1 5 . . 1 . . . . 1 . . 1 . . . . Energy Bleed 5 | . . . . . . . . . . . . . . . . . . . 1 1 . . 1 . . . . 1 . . 1 . . . . Interference 4 | . . . . . . . . . . . . . . . . . . . . 4 . . . . . . . . . . . . . . . Siege Activations 120 | . . . . . . . . . . . . . . . . . . . . . . . . . . . . . . 6 7 7 22 36 42 Total Turns 4286 | . . . . . . . . . . . . . . . . . . . . . . . . . . . . . . 48 284 280 582 2454 638 Longest Duration 355 | . . . . . . . . . . . . . . . . . . . . . . . . . . . . . . 15 115 142 172 355 189 Robots Corrupted 501 | . . . . . . 1 . . . . . . . . . . 2 . 2 . . . . . 1 . 2 . 1 25 45 63 104 254 1 Combat Hostiles 470 | . . . . . . 1 . . . . . . . . . . . . 2 . . . . . . . 1 . 1 22 42 63 94 243 1 Parts Fried 1488 | . . . . . . 1 . . . . . . 1 . . . 1 . . . . 1 . . 4 . 2 . 1 72 129 211 314 748 3 Impact Corruptions 10 | . . . . . . . . . . 3 . . . . . . . . . . . . . . . . . . . . . . 1 6 . Robots Melted 4 | . . . . . . . . . . . . . . . . . . . . . . . . . . . . . . 1 . . 3 . . Combat Hostiles 1 | . . . . . . . . . . . . . . . . . . . . . . . . . . . . . . 1 . . . . . Parts Melted 31 | . 2 . . . . . . . . . . . . . . . . . . . . 2 . 1 . . 1 . . . 2 6 14 3 . Heat Transferred 24045 | . 1160 . . . . . . . . . . . . . 50 . 50 . 73 300 775 725 1047 1125 675 225 1060 . 150 1375 2717 3385 2953 6150 50 Parts Sabotaged 5 | . . . . . . . . . . . . . . . . . . . . . . . . . . . . . . . . 2 . 3 . Parts Stolen . | . . . . . . . . . . . . . . . . . . . . . . . . . . . . . . . . . . . . Parts Stripped . | . . . . . . . . . . . . . . . . . . . . . . . . . . . . . . . . . . . . Power Chain Reactions 155 | . 1 . . . . . . . . . . . . . . . . . . . . . . . . . 1 . . 11 22 27 28 64 1 Missiles Intercepted . | . . . . . . . . . . . . . . . . . . . . . . . . . . . . . . . . . . . . Alert | -11 -10 -10 -9 -9 -9 -8 -8 -7 -7 -7 -7 -7 -7 -6 -6 -6 -6 -6 -6 -5 -5 -5 -5 -5 -5 -4 -4 -4 -3 -2 -2 -2 -1 -1 -1 ------- Run | Scr Mat Min Mat Min Exi Min Mat Fac Was Fac Low Low Dat Pro Fac Low Low Zio Dee Pro Fac Ext Cet Arc Hub Fac Arm Lab Res Res Qua Sec Acc Com Ac0 Peak Influence 21240 | 15 209 186 192 32 . 45 207 149 54 295 . . . . 353 . . . . . 919 511 423 417 775 401 454 . 274 1959 5628 7109 9670 21240 . Initial 6188 | . 9 78 24 32 . . 17 93 52 . . . . . . . . . . . 42 280 123 169 23 379 . . . 148 1038 3165 4264 6188 . Average 8814 | 7 108 37 82 32 . 12 83 128 30 115 . . . . 153 . . . . . 445 340 246 237 140 186 245 . 136 864 4808 6451 8013 16885 . Maximum Alert Level 5 | . 1 . . . . . 1 . . 1 . . . . 1 . . . . . 3 2 2 2 3 2 2 . 1 5 5 5 5 5 . Low Security (%) 16 | 100 97 100 100 100 . 100 76 100 100 80 . . . . 49 . . . . . 9 . 66 22 63 47 34 . 77 6 . . . . . Level 1 8 | . 2 . . . . . 23 . . 19 . . . . 50 . . . . . 34 92 12 64 32 52 58 . 22 30 . . . . . Level 2 2 | . . . . . . . . . . . . . . . . . . . . . 45 7 21 12 2 . 7 . . 15 . . . . . Level 3 . | . . . . . . . . . . . . . . . . . . . . . 10 . . . 1 . . . . 18 . . . . . Level 4 . | . . . . . . . . . . . . . . . . . . . . . . . . . . . . . . 2 . . . . . Level 5 18 | . . . . . . . . . . . . . . . . . . . . . . . . . . . . . . 26 . . 8 32 . High Security 41 | . . . . . . . . . . . . . . . . . . . . . . . . . . . . . . . . . 91 67 . Max Security 11 | . . . . . . . . . . . . . . . . . . . . . . . . . . . . . . . 99 99 . . . Sterilizations 3 | . . . . . . . . . . . . . . . . . . . . . . . . . . . . . . . 1 1 1 . . Squads Dispatched 182 | . 2 . 1 . . . 1 1 . 11 . . . . 3 . . . . . 4 1 . . 1 . 3 . 1 17 30 31 38 37 . Investigation 7 | . 2 . . . . . . . . 1 . . . . 1 . . . . . . . . . . . . . . 3 . . . . . Extermination 11 | . . . . . . . . . . 2 . . . . . . . . . . 1 . . . . . 3 . . 4 . . . 1 . Reinforcement 16 | . . . 1 . . . 1 1 . 2 . . . . 1 . . . . . 2 1 . . 1 . . . 1 4 . . 1 . . Assault 140 | . . . . . . . . . . . . . . . . . . . . . 1 . . . . . . . . 6 30 31 36 36 . Garrison 8 | . . . . . . . . . . 6 . . . . 1 . . . . . . . . . . . . . . . . . 1 . . Intercept . | . . . . . . . . . . . . . . . . . . . . . . . . . . . . . . . . . . . . Construction Impeded 7 | . . . . . . . . . . 1 . . . . 1 . . . . . . . . . 1 . . . 1 2 . . 1 . . Haulers Reinforced 4 | . . . . . . . . . . 1 . . . . . . . . . . 1 . . . . . . . . 2 . . . . . Stealth | -11 -10 -10 -9 -9 -9 -8 -8 -7 -7 -7 -7 -7 -7 -6 -6 -6 -6 -6 -6 -5 -5 -5 -5 -5 -5 -4 -4 -4 -3 -2 -2 -2 -1 -1 -1 --------- Run | Scr Mat Min Mat Min Exi Min Mat Fac Was Fac Low Low Dat Pro Fac Low Low Zio Dee Pro Fac Ext Cet Arc Hub Fac Arm Lab Res Res Qua Sec Acc Com Ac0 Distress Signals 33 | . 1 . 4 . . . 2 . . 3 . . . . . . . . . . . 1 1 2 1 1 4 . 1 2 . . 1 9 . Communications Jammed 22 | . . . . . . . . . . . . . . . . . . . . . . . . . . . . . . 22 . . . . . Distress Signals 22 | . . . . . . . . . . . . . . . . . . . . . . . . . . . . . . 22 . . . . . Times Spotted 1550 | . 15 6 12 . . 1 7 4 4 32 7 12 4 9 9 8 3 . 57 10 17 9 7 13 11 11 20 . 6 82 154 163 219 552 86 Peak Tracking Total 43 | . 4 2 4 . . 1 2 2 2 5 3 4 4 4 6 4 3 . 37 7 5 4 4 1 4 8 4 . 4 17 24 27 15 43 6 Tactical Retreats 55 | . 3 . . . . . . . . 2 2 . . . . . . . 5 . . . . . . . 1 . . 8 2 7 4 20 1 Traps | -11 -10 -10 -9 -9 -9 -8 -8 -7 -7 -7 -7 -7 -7 -6 -6 -6 -6 -6 -6 -5 -5 -5 -5 -5 -5 -4 -4 -4 -3 -2 -2 -2 -1 -1 -1 ------- Run | Scr Mat Min Mat Min Exi Min Mat Fac Was Fac Low Low Dat Pro Fac Low Low Zio Dee Pro Fac Ext Cet Arc Hub Fac Arm Lab Res Res Qua Sec Acc Com Ac0 Traps Triggered 74 | . 1 . . . . . 1 1 . . . . 3 . . . . . . . . 1 . . . . . . 2 4 . 7 1 53 . Indirectly 61 | . . . . . . . . . . . . . . . . . . . . . . . . . . . . . 2 3 . 5 1 50 . Trap Hack Attempts . | . . . . . . . . . . . . . . . . . . . . . . . . . . . . . . . . . . . . Triggered . | . . . . . . . . . . . . . . . . . . . . . . . . . . . . . . . . . . . . Disarmed . | . . . . . . . . . . . . . . . . . . . . . . . . . . . . . . . . . . . . Reprogrammed . | . . . . . . . . . . . . . . . . . . . . . . . . . . . . . . . . . . . . Reused 4 | . . . . . . . . . . . . . . . . . . . 4 . . . . . . . . . . . . . . . . Traps Extracted . | . . . . . . . . . . . . . . . . . . . . . . . . . . . . . . . . . . . . Installed 14 | . . 2 . . . . . . . . . . 3 . . . . . 9 . . . . . . . . . . . . . . . . Triggered 3 | . . . . . . . . . . . . . . . . 3 . . . . . . . . . . . . . . . . . . . Machines | -11 -10 -10 -9 -9 -9 -8 -8 -7 -7 -7 -7 -7 -7 -6 -6 -6 -6 -6 -6 -5 -5 -5 -5 -5 -5 -4 -4 -4 -3 -2 -2 -2 -1 -1 -1 ---------- Run | Scr Mat Min Mat Min Exi Min Mat Fac Was Fac Low Low Dat Pro Fac Low Low Zio Dee Pro Fac Ext Cet Arc Hub Fac Arm Lab Res Res Qua Sec Acc Com Ac0 Machines Disabled 155 | . . . . . . . . . . 1 . . 1 . 1 . . 2 4 . 11 5 3 5 12 1 10 7 . 11 21 26 10 18 6 Max in Single Turn 4 | . . . . . . . . . . 1 . . 1 . 1 . . 1 1 . 4 2 1 2 4 1 1 1 . 1 2 2 2 3 1 Garrison Access 8 | . . . . . . . 1 . . . . . . . 1 . . . . . 1 . . . . . . . 1 1 . 1 2 . . Phase Generator 1 | . . . . . . . . . . . . . . . . . . . . . . . . . . . . . . . . . . 1 . Network Hub 2 | . . . . . . . . . . . . . . . . . . . . . . . . . 2 . . . . . . . . . . Machines Sabotaged . | . . . . . . . . . . . . . . . . . . . . . . . . . . . . . . . . . . . . Garrisons Compromised . | . . . . . . . . . . . . . . . . . . . . . . . . . . . . . . . . . . . . Overloaded Fab Kills . | . . . . . . . . . . . . . . . . . . . . . . . . . . . . . . . . . . . . Fab Network Shutdowns 1 | . . . . . . . . . . . . . . . . . . . . . 1 . . . . . . . . . . . . . . Hacking | -11 -10 -10 -9 -9 -9 -8 -8 -7 -7 -7 -7 -7 -7 -6 -6 -6 -6 -6 -6 -5 -5 -5 -5 -5 -5 -4 -4 -4 -3 -2 -2 -2 -1 -1 -1 --------- Run | Scr Mat Min Mat Min Exi Min Mat Fac Was Fac Low Low Dat Pro Fac Low Low Zio Dee Pro Fac Ext Cet Arc Hub Fac Arm Lab Res Res Qua Sec Acc Com Ac0 Machines Accessed 64 | . 6 1 5 . 2 . 2 . . 10 . 1 3 . 2 1 1 . . 1 5 2 . . 1 6 6 . 2 5 . . 1 1 . Terminals 44 | . 5 1 5 . . . 1 . . 7 . . . . 1 . . . . 1 4 2 . . 1 4 4 . 1 5 . . 1 1 . Fabricators 6 | . . . . . . . . . . 2 . . . . . . . . . . 1 . . . . 1 2 . . . . . . . . Repair Stations . | . . . . . . . . . . . . . . . . . . . . . . . . . . . . . . . . . . . . Recycling Units 1 | . 1 . . . . . . . . . . . . . . . . . . . . . . . . . . . . . . . . . . Scanalyzers 2 | . . . . . . . . . . 1 . . . . . . . . . . . . . . . 1 . . . . . . . . . Garrison Access 3 | . . . . . . . 1 . . . . . . . 1 . . . . . . . . . . . . . 1 . . . . . . Total Hacks 323 | . 20 2 14 . 2 . 5 . . 32 . 1 20 . 7 1 1 . . 1 35 3 . . 13 64 47 . 14 36 . . 4 1 . Successful 196 | . 10 1 10 . 2 . 2 . . 22 . 1 20 . 4 1 1 . . 1 21 2 . . 7 38 25 . 8 19 . . 1 . . Failed 125 | . 10 1 4 . . . 3 . . 10 . . . . 3 . . . . . 14 1 . . 6 25 21 . 6 17 . . 3 1 . Catastrophic 22 | . . 1 1 . . . . . . 2 . . . . . . . . . . 2 . . . 1 4 6 . 2 3 . . . . . Database Lockouts 2 | . . . . . . . . . . . . . . . . . . . . . . . . . . 1 1 . . . . . . . . Manual 170 | . 12 2 7 . 1 . 2 . . 14 . . . . 7 . . . . . 23 . 1 . 8 31 37 . 12 12 . . . 1 . Terminals 243 | . 19 2 14 . . . 3 . . 23 . . . . 3 . . . . 1 24 3 . . 13 50 34 . 13 36 . . 4 1 . Fabricators 36 | . . . . . . . . . . 7 . . . . . . . . . . 11 . . . . 5 13 . . . . . . . . Repair Stations . | . . . . . . . . . . . . . . . . . . . . . . . . . . . . . . . . . . . . Recycling Units 1 | . 1 . . . . . . . . . . . . . . . . . . . . . . . . . . . . . . . . . . Scanalyzers 11 | . . . . . . . . . . 2 . . . . . . . . . . . . . . . 9 . . . . . . . . . Garrison Access 7 | . . . . . . . 2 . . . . . . . 4 . . . . . . . . . . . . . 1 . . . . . . Terminal Hacks 128 | . 8 1 8 . 2 . 1 . . 9 . 1 20 . 1 1 1 . . 1 11 2 . . 5 24 10 . 5 16 . . 1 . . Record 5 | . . . . . 1 . . . . . . . 3 . . . . . . 1 . . . . . . . . . . . . . . . Part Schematic 22 | . . . 1 . . . . . . 2 . . 9 . . . . . . . . . . . . 6 2 . . 2 . . . . . Robot Schematic 6 | . 1 . . . . . . . . . . . 5 . . . . . . . . . . . . . . . . . . . . . . Robot Analysis 3 | . 1 . . . . . . . . . . . . . . . . . . . . . . . . 2 . . . . . . . . . Prototype ID Bank 11 | . 3 . 1 . . . . . . . . . 3 . . . . . . . . . . . . 3 . . 1 . . . . . . Open Door 6 | . . . . . . . . . . . . 1 . . . 1 1 . . . . 2 . . . . . . . 1 . . . . . Level Access Points 5 | . . . . . . . . . . . . . . . . . . . . . . . . . 1 1 . . 1 1 . . 1 . . Branch Access Points 7 | . 1 . 1 . . . . . . 1 . . . . 1 . . . . . . . . . . 1 . . 1 1 . . . . . Emergency Access Points 1 | . . . . . . . . . . . . . . . . . . . . . . . . . . 1 . . . . . . . . . Machine Index 1 | . . . . . . . . . . . . . . . . . . . . . . . . . . . . . 1 . . . . . . Terminal Index 4 | . . . 1 . . . . . . 1 . . . . . . . . . . . . . . . . 1 . . 1 . . . . . Fabricator Index 3 | . . . . . . . . . . 1 . . . . . . . . . . . . . . . . 1 . . 1 . . . . . Recycling Unit Index 1 | . . . . . . . . . . . . . . . . . . . . . . . . . . . . . . 1 . . . . . Garrison Index 2 | . . . . . . . . . . . . . . . . . . . . . . . . . 1 . . . . 1 . . . . . Alert Level 10 | . . . 1 . . . . . . . . . . . . . . . . . 6 . . . . 1 1 . . 1 . . . . . Unreport Threat 14 | . . . . . . . . . . 2 . . . . . . . . . . 3 . . . 1 5 2 . . 1 . . . . . Locate Traps 7 | . 2 . 1 . . . . . . 1 . . . . . . . . . . 1 . . . 1 1 . . . . . . . . . Dispatch Records 1 | . . . . . . . . . . . . . . . . . . . . . . . . . . . . . . 1 . . . . . Patrol Status 7 | . . 1 1 . . . . . . . . . . . . . . . . . . . . . 1 1 2 . 1 . . . . . . Recall Extermination 3 | . . . . . . . . . . . . . . . . . . . . . 1 . . . . . 1 . . 1 . . . . . Recall Assault 1 | . . . . . . . . . . . . . . . . . . . . . . . . . . . . . . 1 . . . . . Hauler Manifests 5 | . . . 1 . . . 1 . . . . . . . . . . . . . . . . . . 2 . . . 1 . . . . . Registered Components 1 | . . . . . . . . . . 1 . . . . . . . . . . . . . . . . . . . . . . . . . Registered Prototypes 1 | . . . . . . . . . . . . . . . . . . . . . . . . . . . . . . 1 . . . . . EX-Prototype ID Bank 1 | . . . . . 1 . . . . . . . . . . . . . . . . . . . . . . . . . . . . . . Fabricator Hacks 18 | . . . . . . . . . . 4 . . . . . . . . . . 6 . . . . 1 7 . . . . . . . . Load Schematic 9 | . . . . . . . . . . 2 . . . . . . . . . . 3 . . . . . 4 . . . . . . . . Build 9 | . . . . . . . . . . 2 . . . . . . . . . . 3 . . . . 1 3 . . . . . . . . Repair Station Hacks . | . . . . . . . . . . . . . . . . . . . . . . . . . . . . . . . . . . . . Recycling Unit Hacks . | . . . . . . . . . . . . . . . . . . . . . . . . . . . . . . . . . . . . Scanalyzer 9 | . . . . . . . . . . 2 . . . . . . . . . . . . . . . 7 . . . . . . . . . Insert Component 5 | . . . . . . . . . . 1 . . . . . . . . . . . . . . . 4 . . . . . . . . . Analyze 4 | . . . . . . . . . . 1 . . . . . . . . . . . . . . . 3 . . . . . . . . . Garrison Access Hacks 2 | . . . . . . . 1 . . . . . . . . . . . . . . . . . . . . . 1 . . . . . . Seal Access 2 | . . . . . . . 1 . . . . . . . . . . . . . . . . . . . . . 1 . . . . . . Unauthorized Hacks 39 | . 2 . 2 . . . . . . 7 . . . . 3 . . . . . 4 . . . 2 6 8 . 2 3 . . . . . Terminals 24 | . 2 . 2 . . . . . . 4 . . . . 1 . . . . . 1 . . . 2 4 3 . 2 3 . . . . . Track 2 | . 1 . . . . . . . . . . . . . . . . . . . . . . . . 1 . . . . . . . . . Assimilate 5 | . . . . . . . . . . 2 . . . . 1 . . . . . . . . . 1 . . . 1 . . . . . . Botnet 15 | . 1 . 2 . . . . . . 2 . . . . . . . . . . 1 . . . 1 2 2 . 1 3 . . . . . Detonate 1 | . . . . . . . . . . . . . . . . . . . . . . . . . . 1 . . . . . . . . . Operators 1 | . . . . . . . . . . . . . . . . . . . . . . . . . . . 1 . . . . . . . . Fabricators 13 | . . . . . . . . . . 3 . . . . . . . . . . 3 . . . . 2 5 . . . . . . . . Report 3 | . . . . . . . . . . . . . . . . . . . . . 1 . . . . 1 1 . . . . . . . . Prioritize 5 | . . . . . . . . . . 2 . . . . . . . . . . 1 . . . . . 2 . . . . . . . . Siphon 5 | . . . . . . . . . . 1 . . . . . . . . . . 1 . . . . 1 2 . . . . . . . . Repair Stations . | . . . . . . . . . . . . . . . . . . . . . . . . . . . . . . . . . . . . Recycling Units . | . . . . . . . . . . . . . . . . . . . . . . . . . . . . . . . . . . . . Scanalyzers . | . . . . . . . . . . . . . . . . . . . . . . . . . . . . . . . . . . . . Garrison Access 2 | . . . . . . . . . . . . . . . 2 . . . . . . . . . . . . . . . . . . . . Reprogram 1 | . . . . . . . . . . . . . . . 1 . . . . . . . . . . . . . . . . . . . . Jam 1 | . . . . . . . . . . . . . . . 1 . . . . . . . . . . . . . . . . . . . . Data Cores Recovered 1 | . . . . . . . . . . 1 . . . . . . . . . . . . . . . . . . . . . . . . . Used 1 | . . . . . . . . . . 1 . . . . . . . . . . . . . . . . . . . . . . . . . Hacking Detections 41 | . 6 1 4 . . . 1 . . 9 . . . . 2 . . . . . 4 . . . 1 3 4 . 1 4 . . 1 . . Full Trace Events 3 | . 1 . 1 . . . . . . 1 . . . . . . . . . . . . . . . . . . . . . . . . . Feedback Events . | . . . . . . . . . . . . . . . . . . . . . . . . . . . . . . . . . . . . Feedback Blocked . | . . . . . . . . . . . . . . . . . . . . . . . . . . . . . . . . . . . . Robot Schematics Acquired 6 | . 1 . . . . . . . . . . . 5 . . . . . . . . . . . . . . . . . . . . . . Robots Built . | . . . . . . . . . . . . . . . . . . . . . . . . . . . . . . . . . . . . Matter . | . . . . . . . . . . . . . . . . . . . . . . . . . . . . . . . . . . . . Time . | . . . . . . . . . . . . . . . . . . . . . . . . . . . . . . . . . . . . Total Robot Build Rating . | . . . . . . . . . . . . . . . . . . . . . . . . . . . . . . . . . . . . Part Schematics Acquired 25 | . . . 1 . . . . . . 3 . . 9 . . . . . . . . . . . . 8 2 . . 2 . . . . . Parts Built 10 | . . . . . . . . . . 2 . . . . . . . . . . 3 . . . . 1 4 . . . . . . . . Matter 2023 | . . . . . . . . . . 343 . . . . . . . . . . 736 . . . . 312 632 . . . . . . . . Time 944 | . . . . . . . . . . 201 . . . . . . . . . . 312 . . . . 74 357 . . . . . . . . Total Part Build Rating 53 | . . . . . . . . . . 11 . . . . . . . . . . 16 . . . . 9 17 . . . . . . . . Parts Repaired . | . . . . . . . . . . . . . . . . . . . . . . . . . . . . . . . . . . . . Time . | . . . . . . . . . . . . . . . . . . . . . . . . . . . . . . . . . . . . Parts Recycled . | . . . . . . . . . . . . . . . . . . . . . . . . . . . . . . . . . . . . Recycled Matter . | . . . . . . . . . . . . . . . . . . . . . . . . . . . . . . . . . . . . Retrieved Matter . | . . . . . . . . . . . . . . . . . . . . . . . . . . . . . . . . . . . . Retrieved Components . | . . . . . . . . . . . . . . . . . . . . . . . . . . . . . . . . . . . . Parts Scanalyzed 3 | . . . . . . . . . . 1 . . . . . . . . . . . . . . . 2 . . . . . . . . . Part Schematics Acquired 3 | . . . . . . . . . . 1 . . . . . . . . . . . . . . . 2 . . . . . . . . . Parts Damaged 1 | . . . . . . . . . . 1 . . . . . . . . . . . . . . . . . . . . . . . . . Bothacking | -11 -10 -10 -9 -9 -9 -8 -8 -7 -7 -7 -7 -7 -7 -6 -6 -6 -6 -6 -6 -5 -5 -5 -5 -5 -5 -4 -4 -4 -3 -2 -2 -2 -1 -1 -1 ------------ Run | Scr Mat Min Mat Min Exi Min Mat Fac Was Fac Low Low Dat Pro Fac Low Low Zio Dee Pro Fac Ext Cet Arc Hub Fac Arm Lab Res Res Qua Sec Acc Com Ac0 Used RIF Installer . | . . . . . . . . . . . . . . . . . . . . . . . . . . . . . . . . . . . . Robots Hacked 2 | . . . . . . . . 1 . . . . . . . . . . . . . . . 1 . . . . . . . . . . . Non-combat 2 | . . . . . . . . 1 . . . . . . . . . . . . . . . 1 . . . . . . . . . . . Combat . | . . . . . . . . . . . . . . . . . . . . . . . . . . . . . . . . . . . . Robot Hacks Applied 2 | . . . . . . . . 1 . . . . . . . . . . . . . . . 1 . . . . . . . . . . . find_chute 1 | . . . . . . . . 1 . . . . . . . . . . . . . . . . . . . . . . . . . . . check_alert 1 | . . . . . . . . . . . . . . . . . . . . . . . . 1 . . . . . . . . . . . Relay Couplers Released 12 | . . . . . . . . . . . . . . . . . . . . . 1 . . . . . . . . 3 . 1 7 . . Machine Destruction 12 | . . . . . . . . . . . . . . . . . . . . . 1 . . . . . . . . 3 . 1 7 . . Robots Rewired 6 | . . . . . . . . . . . . . . . . . . . . . . 3 . . . . 3 . . . . . . . . Allies Hacked . | . . . . . . . . . . . . . . . . . . . . . . . . . . . . . . . . . . . . Hacks Repelled . | . . . . . . . . . . . . . . . . . . . . . . . . . . . . . . . . . . . . Allies | -11 -10 -10 -9 -9 -9 -8 -8 -7 -7 -7 -7 -7 -7 -6 -6 -6 -6 -6 -6 -5 -5 -5 -5 -5 -5 -4 -4 -4 -3 -2 -2 -2 -1 -1 -1 -------- Run | Scr Mat Min Mat Min Exi Min Mat Fac Was Fac Low Low Dat Pro Fac Low Low Zio Dee Pro Fac Ext Cet Arc Hub Fac Arm Lab Res Res Qua Sec Acc Com Ac0 Total Allies 48 | . . 5 . . . . . . 18 2 . . . . 2 . . . . . . 5 1 . 1 . 13 . 1 . . . . . . Largest Group 18 | . . 5 4 . . . . . 18 7 . . . . 2 . . . . . . 5 5 1 1 1 10 . 1 . . . . . . Highest-Rated Group 481 | . . 80 71 . . . . . 456 116 . . . . 42 . . . . . . 257 257 94 10 10 481 . 10 . . . . . . Highest-Rated Ally 156 | . . 31 31 . . . . . 35 32 . . . . 32 . . . . . . 156 150 94 10 10 58 . 10 . . . . . . Total Orders 38 | . . . 3 . . . . . . 4 . . . . 3 . . . . . . . 1 . 2 3 3 . 1 . . . . . 18 STAY 11 | . . . 1 . . . . . . 2 . . . . 2 . . . . . . . . . 1 2 . . 1 . . . . . 2 ROAM 5 | . . . 1 . . . . . . . . . . . . . . . . . . . 1 . . . 3 . . . . . . . . FOLLOW 6 | . . . 1 . . . . . . 2 . . . . 1 . . . . . . . . . 1 1 . . . . . . . . . EXPLORE 13 | . . . . . . . . . . . . . . . . . . . . . . . . . . . . . . . . . . . 13 RETURN 3 | . . . . . . . . . . . . . . . . . . . . . . . . . . . . . . . . . . . 3 Ally Attacks 288 | . . 26 16 . . . . . 52 64 . . . . 3 . . . . . . 26 27 2 . . 47 . . . 25 . . . . Total Damage 7295 | . . 385 208 . . . . . 2116 697 . . . . 194 . . . . . . 622 494 95 . . 1273 . . . 1211 . . . . Kills 46 | . . 5 5 . . . . . 3 6 . . . . . . . . . . . 4 4 . . . 12 . . . 7 . . . . Allies Corrupted 1 | . . . . . . . . . . . . . . . . . . . . . . . . . . . 1 . . . . . . . . Allies Melted . | . . . . . . . . . . . . . . . . . . . . . . . . . . . . . . . . . . . . Turrets Deployed 2 | . . . . . . . . . 1 . . . . . . . . . . . . . . . . . . . . . 1 . . . . Intel | -11 -10 -10 -9 -9 -9 -8 -8 -7 -7 -7 -7 -7 -7 -6 -6 -6 -6 -6 -6 -5 -5 -5 -5 -5 -5 -4 -4 -4 -3 -2 -2 -2 -1 -1 -1 ------- Run | Scr Mat Min Mat Min Exi Min Mat Fac Was Fac Low Low Dat Pro Fac Low Low Zio Dee Pro Fac Ext Cet Arc Hub Fac Arm Lab Res Res Qua Sec Acc Com Ac0 Robot Analysis Total 3 | . 1 . . . . . . . . . . . . . . . . . . . . . . . . 2 . . . . . . . . . Derelict Logs Recovered 14 | . . 1 . 1 . . . . . . 2 1 . 2 . 2 1 2 . 2 . . . . . . . . . . . . . . . Drone Launches 14 | . . . . . . . . . . . . . . . . . . . . . . . . . . . . . . . . . . . 14 Drone Recoveries 8 | . . . . . . . . . . . . . . . . . . . . . . . . . . . . . . . . . . . 8 Exploration | -11 -10 -10 -9 -9 -9 -8 -8 -7 -7 -7 -7 -7 -7 -6 -6 -6 -6 -6 -6 -5 -5 -5 -5 -5 -5 -4 -4 -4 -3 -2 -2 -2 -1 -1 -1 ------------- Run | Scr Mat Min Mat Min Exi Min Mat Fac Was Fac Low Low Dat Pro Fac Low Low Zio Dee Pro Fac Ext Cet Arc Hub Fac Arm Lab Res Res Qua Sec Acc Com Ac0 Turns Passed 74171 | 206 759 1042 445 274 649 167 721 318 670 1784 1887 1512 386 1324 270 4546 1940 2748 5177 1430 918 903 306 975 325 422 1336 1222 302 1320 2182 2908 3088 23892 5817 Spaces Moved 29786 | 92 291 646 209 171 353 79 295 134 293 871 904 666 163 677 100 1106 725 1281 1672 655 399 450 108 429 114 207 570 354 144 492 835 1353 1107 9422 2419 Core 230 | 3 . . . . . . . . . . . . . . . 39 . 178 5 . . . . . . . . 5 . . . . . . . Treads 25460 | 89 106 336 209 171 353 79 295 134 293 418 904 666 163 677 100 1067 725 1103 1303 . . 254 108 429 114 75 . 3 . 226 759 1353 1107 9422 2419 Legs 1674 | . . . . . . . . . . . . . . . . . . . 364 639 399 196 . . . . . . . . 76 . . . . Wheels 2422 | . 185 310 . . . . . . . 453 . . . . . . . . . 16 . . . . . 132 570 346 144 266 . . . . . Hover . | . . . . . . . . . . . . . . . . . . . . . . . . . . . . . . . . . . . . Flight . | . . . . . . . . . . . . . . . . . . . . . . . . . . . . . . . . . . . . Fastest Speed 50 | 50 90 120 160 160 160 180 180 180 180 140 195 203 183 183 183 260 200 100 136 160 169 169 180 180 180 170 160 140 160 165 165 155 155 177 155 Average Speed 199 | 156 126 151 160 160 179 180 180 180 180 159 199 203 196 183 193 341 254 200 248 174 169 175 180 180 180 173 164 173 169 167 184 162 175 209 183 Slowest Speed 2750 | 160 160 200 160 160 180 180 180 180 180 195 203 203 203 183 320 2050 300 700 2750 250 169 200 180 180 180 180 170 2350 170 170 270 175 210 250 210 Overloaded Moves . | . . . . . . . . . . . . . . . . . . . . . . . . . . . . . . . . . . . . Propulsion Burnouts . | . . . . . . . . . . . . . . . . . . . . . . . . . . . . . . . . . . . . Robots Hopped 1 | . . . . . . . . . . . . . . . . . . . . . . . . . . . . . . . 1 . . . . Cave-ins Triggered 1 | . . . . . . . . . . . . . . . . . . . . . . . . . . . . . . . 1 . . . . Teleports 3 | . . . . . . . . . . . . . . . . . . . . . . . . . . . . . . . . 1 . 1 1 Exploration Rate (%) 56 | 5 51 98 27 44 69 29 25 5 95 23 90 90 80 89 4 88 83 81 87 93 12 59 55 96 25 11 44 96 9 24 63 81 26 90 88 Regions Visited 35 Branch Regions 23 Pre-discovered Areas 10 | . . . . 2 1 . . . . . . . 1 1 . . 1 2 . 2 . . . . . . . . . . . . . . . Known Exits Taken 14 | . 1 1 1 . . . . . . 1 . . . 1 1 . . . . 1 1 . . . 1 1 . 1 1 1 . 1 . . . Unknown Exits Taken 19 | 1 . . . 1 1 1 1 . . . 1 1 1 . . 1 1 1 1 . . 1 1 1 . . 1 . . . 1 . 1 1 . Scrap Searched 31 | . . 1 . 1 . . . . . . 5 4 . 4 . 3 4 4 . 5 . . . . . . . . . . . . . . . Spaces Dug 506 | . 2 . . . . . 6 . . 14 . 21 . 23 4 8 3 2 21 13 41 . . . 7 7 28 . 5 26 34 8 14 193 26 Terrain Destroyed 4305 | . 11 . 25 . . . 14 6 . 35 . 28 . 72 40 13 49 2 94 139 142 51 47 25 380 17 228 . 19 104 312 197 333 1730 192 Melee 9 | . . . . . . . . . . 4 . . . . 3 . . 2 . . . . . . . . . . . . . . . . . Projectile 582 | . 6 . . . . . . . . 12 . . . . 1 13 5 . 18 19 51 7 5 6 14 17 55 . 7 31 66 17 21 28 183 AOE 3714 | . 5 . 25 . . . 14 6 . 19 . 28 . 72 36 . 44 . 76 120 91 44 42 19 366 . 173 . 12 73 246 180 312 1702 9 Terrain Rammed . | . . . . . . . . . . . . . . . . . . . . . . . . . . . . . . . . . . . . Walls Destroyed . | . . . . . . . . . . . . . . . . . . . . . . . . . . . . . . . . . . . . Machines Disabled . | . . . . . . . . . . . . . . . . . . . . . . . . . . . . . . . . . . . . Actions | -11 -10 -10 -9 -9 -9 -8 -8 -7 -7 -7 -7 -7 -7 -6 -6 -6 -6 -6 -6 -5 -5 -5 -5 -5 -5 -4 -4 -4 -3 -2 -2 -2 -1 -1 -1 --------- Run | Scr Mat Min Mat Min Exi Min Mat Fac Was Fac Low Low Dat Pro Fac Low Low Zio Dee Pro Fac Ext Cet Arc Hub Fac Arm Lab Res Res Qua Sec Acc Com Ac0 Total 41638 | 133 583 699 297 171 369 98 457 198 371 1127 956 797 219 734 149 1836 790 1454 2568 919 578 535 179 592 191 246 861 938 184 901 1303 1908 2006 12914 3377 Wait 6790 | 3 205 23 20 . . 7 117 36 . 106 11 98 . 4 11 635 1 28 520 229 124 22 10 118 42 7 143 503 13 241 122 143 510 2216 522 Move 29748 | 91 290 645 208 170 352 78 294 134 292 870 903 665 162 676 99 1105 724 1280 1671 654 398 449 107 428 113 206 569 353 143 491 831 1352 1106 9421 2418 Hop 1 | . . . . . . . . . . . . . . . . . . . . . . . . . . . . . . . 1 . . . . Pick Up 672 | 6 5 7 19 . 11 1 9 8 13 14 6 . 8 5 3 14 18 70 59 . 7 6 8 4 2 5 13 13 1 10 37 35 36 210 9 Fast Attach 227 | 6 4 1 1 . . . 3 1 . 5 1 3 1 . . 3 3 8 16 3 . 3 5 2 1 1 4 3 . 1 20 46 17 41 24 Attach 283 | 1 . 1 7 . 1 3 4 3 5 7 1 . 9 4 5 13 2 7 29 1 1 . . 1 . 1 3 5 2 11 30 40 4 45 37 Detach 221 | . . . . . . . 2 . . 3 . . 5 . 2 4 1 3 28 7 . 2 1 2 1 2 10 2 . 11 49 36 9 27 14 Swap 627 | 1 18 3 7 . 1 2 6 5 8 26 12 12 5 16 4 10 12 8 29 7 7 2 8 5 8 4 22 . 3 9 44 40 88 144 51 Drop 714 | 1 6 6 17 . 4 4 6 2 15 12 7 4 13 2 2 5 1 34 87 2 4 5 15 5 2 7 17 12 1 8 43 63 35 242 25 Fire 2090 | 15 50 6 16 . . 3 14 5 15 68 15 15 . 27 18 47 22 . 73 16 37 20 21 26 22 11 71 47 21 118 115 153 190 536 277 Melee 132 | . . . . . . . . 1 23 8 . . 13 . 3 . 6 16 47 . . . 4 1 . . . . . . 10 . . . . Ram . | . . . . . . . . . . . . . . . . . . . . . . . . . . . . . . . . . . . . Kick . | . . . . . . . . . . . . . . . . . . . . . . . . . . . . . . . . . . . . Crush 61 | 9 5 5 2 1 . . 2 3 . 8 . . . . 2 . . . . . . . . . . 2 . . . 1 . . 5 16 . Escape Stasis 25 | . . . . . . . . . . . . . . . . . . . . . . 2 . . . . . . . . 1 . 6 16 . Rewire 33 | . . . . . . . . . . . . . . . . . . . . . . 24 . . . . 9 . . . . . . . . Trap 14 | . . 2 . . . . . . . . . . 3 . . . . . 9 . . . . . . . . . . . . . . . . Miscellaneous . | . . . . . . . . . . . . . . . . . . . . . . . . . . . . . . . . . . . . Route ------- -11/Scrapyard -10/Materials -10/Mines (discovered 2 exits: *Mat x2) -9/Materials (discovered 3 exits: *Min x2 / Sto) -9/Mines (discovered 2 exits: *Mat / *Exi) -9/Exiles -8/Mines -8/Materials -7/Factory -7/Waste -7/Factory (discovered 2 exits: *Low x2) -7/Lower Caves -7/Lower Caves (discovered 2 exits: *Fac / *Dat) -7/Data Miner -6/Proximity Caves -6/Factory (discovered 3 exits: Fac / *Low x2) -6/Lower Caves -6/Lower Caves -6/Zion (discovered 2 exits: [*Dee] / [*Pro]) -6/Deep Caves -5/Proximity Caves -5/Factory (discovered 2 exits: Upp / *Ext) -5/Extension (discovered 2 exits: *Fac / *Cet) -5/Cetus -5/Archives (discovered 3 exits: *Fac / *Hub x2) -5/Hub_04(d) (discovered 4 exits: *Fac x4) -4/Factory (discovered 7 exits: Res x4 / Upp x2 / *Arm) -4/Armory (discovered 3 exits: Res x2 / [*Lab]) -4/Lab -3/Research (discovered 5 exits: *Res x3 / Tes x2) -2/Research -2/Quarantine (discovered 2 exits: *Acc / [*Sec]) -2/Section 7 -1/Access (discovered 2 exits: Sur / *Com) -1/Command (discovered 3 exits: *Sur x2 / [*Ac0]) -1/Access_0 To Fleet Rendezvous History --------- Turn | Location | Event 2 | -11/Scrapyard | Discovered new exit (range 16) 207 | -11/Scrapyard | Entered Materials 320 | -10/Materials | Build established: Mutant 830 | -10/Materials | Identified exit to Mines 966 | -10/Materials | Entered Mines 970 | -10/Mines | Met a Derelict bent on vengeance 983 | -10/Mines | Identified exit to Materials 1000 | -10/Mines | Found a hidden stash of uninstalled traps 1114 | -10/Mines | Discovered exit to Materials (range 12) 1253 | -10/Mines | Assisted by bots powering up and referring to "LRC-V3" 1413 | -10/Mines | Joined a pair of Derelicts in attacking an 0b10 outpost 2008 | -10/Mines | Entered Materials 2008 | -9/Materials | Accompanied by 4 allies 2008 | -9/Materials | Evolved 2 slots: Propulsion x1, Weapon x1 2013 | -9/Materials | Led the pair of lost Derelicts to an unsafe place 2240 | -9/Materials | Identified exit to Mines 2240 | -9/Materials | Identified exit to Storage 2453 | -9/Materials | Entered Mines 2501 | -9/Mines | Learned location of Storage (-9) 2529 | -9/Mines | Discovered new exit (range 7) 2675 | -9/Mines | Build established: Gunner 2721 | -9/Mines | Deemed a non-threat by the Exiles lab entrance 2721 | -9/Mines | Discovered new exit (range 5) 2727 | -9/Mines | Entered Exiles 2777 | -9/Exiles | Met 8R-AWN 2805 | -9/Exiles | Met EX-HEX 2917 | -9/Exiles | Met EX-DEC 2948 | -9/Exiles | Learned location of Zion (-6) 3018 | -9/Exiles | Build established: Hauler-Gunner 3109 | -9/Exiles | Met EX-BIN 3129 | -9/Exiles | Aligned with FarCom system 3131 | -9/Exiles | Given EX-Vault access code 3176 | -9/Exiles | Opened EX-Vault 3191 | -9/Exiles | Found Deploy-a-Sentry 3194 | -9/Exiles | Found Deploy-a-Sentry 3197 | -9/Exiles | Found Deploy-a-Sentry 3238 | -9/Exiles | Warned to stay clear of 0b10 Research branches 3355 | -9/Exiles | Discovered new exit (range 14) 3376 | -9/Exiles | Left Exiles lab with Deploy-a-Sentry 3376 | -9/Exiles | Entered Mines 3434 | -8/Mines | Discovered new exit (range 10) 3543 | -8/Mines | Entered Materials 3543 | -8/Materials | Evolved 2 slots: Utility x2 3674 | -8/Materials | Build established: Hauler-Skirmisher 4080 | -8/Materials | Discovered new exit (range 7) 4264 | -8/Materials | Entered Factory 4264 | -7/Factory | Evolved 2 slots: Utility x2 4455 | -7/Factory | Discovered new exit (range 7) 4469 | -7/Factory | Identified exit to Factory 4582 | -7/Factory | Sucked down chute 4582 | -7/Factory | Entered Waste 4603 | -7/Waste | Spotted C-40 Crusher 4619 | -7/Waste | DAS Turret deployed 4622 | -7/Waste | Allies destroyed C-40 Crusher 4654 | -7/Waste | Allies destroyed C-40 Crusher 4661 | -7/Waste | Destroyed C-40 Crusher 4678 | -7/Waste | Spotted C-40 Crusher 4701 | -7/Waste | Destroyed C-40 Crusher 4712 | -7/Waste | Destroyed C-40 Crusher 4735 | -7/Waste | Found Damper Plating 4762 | -7/Waste | Warlord forces began an assault 4861 | -7/Waste | Spotted C-40 Crusher 5120 | -7/Waste | Discovered new exit (range 14) 5252 | -7/Waste | Entered Factory 5252 | -7/Factory | Accompanied by 7 allies 5296 | -7/Factory | Identified exit to Lower Caves 5317 | -7/Factory | Garrison activated, responded to threat 5834 | -7/Factory | Garrison activated, responded to threat 6091 | -7/Factory | Fabricated Adv. Actuator Array? 6749 | -7/Factory | Fabricated Lrn. Sensor Array (x1) 7036 | -7/Factory | Entered Lower Caves 7063 | -7/Lower Caves | Learned 4 Factory zone layouts 7178 | -7/Lower Caves | Build established: Hauler-Tank 8270 | -7/Lower Caves | Discovered new exit (range 11) 8662 | -7/Lower Caves | Learned Factory interactive machine intel 8923 | -7/Lower Caves | Entered another Lower Caves area 8960 | -7/Lower Caves | Discovered exit to Factory (range 9) 10365 | -7/Lower Caves | Encountered a Warlord checkpoint 10383 | -7/Lower Caves | Discovered new exit (range 8) 10435 | -7/Lower Caves | Entered Data Miner 10435 | -7/Data Miner | Discovered new exit (range 6) 10474 | -7/Data Miner | Met Data Miner 10513 | -7/Data Miner | Learned location of Section 7 (-2) 10513 | -7/Data Miner | Acquired the access code to Warlord's prototype stash 10545 | -7/Data Miner | Received God Mode back door access code from Data Miner 10591 | -7/Data Miner | Destroyed Data Miner 10595 | -7/Data Miner | Found Prototype Hackware 10598 | -7/Data Miner | Found Prototype Hackware 10599 | -7/Data Miner | Data Conduit disabled 10606 | -7/Data Miner | Found Prototype Hackware 10821 | -7/Data Miner | Entered Proximity Caves 10875 | -6/Proximity Caves | Build established: Hauler-Mutant 11787 | -6/Proximity Caves | Discovered exit to Factory (range 5) 12145 | -6/Proximity Caves | Entered Factory 12145 | -6/Factory | Evolved 2 slots: Utility x2 12146 | -6/Factory | Identified exit to Factory 12147 | -6/Factory | Loaded intel: 46 interactive machine locations 12199 | -6/Factory | Identified System Mapper 12243 | -6/Factory | Identified exit to Lower Caves 12415 | -6/Factory | Entered Lower Caves 12417 | -6/Lower Caves | Attracted the attention of an 0b10 checkpoint 12459 | -6/Lower Caves | Lost 6 parts (1p2n1u2w) 15434 | -6/Lower Caves | Lost 3 parts (1n1u1w) 16145 | -6/Lower Caves | Learned Factory emergency access door positions 16165 | -6/Lower Caves | Build established: Hauler-Tank 16779 | -6/Lower Caves | Encountered a Warlord checkpoint 16920 | -6/Lower Caves | Discovered new exit (range 7) 16961 | -6/Lower Caves | Entered another Lower Caves area 17090 | -6/Lower Caves | Found Alien Artifact 17090 | -6/Lower Caves | Identified Core Expander 17090 | -6/Lower Caves | Installed Core Expander, added new Weapon slot 17372 | -6/Lower Caves | Build established: Hauler-Mutant 18828 | -6/Lower Caves | Discovered new exit (range 12) 18901 | -6/Lower Caves | Entered Zion 18913 | -6/Zion | Learned Factory emergency access door positions 19002 | -6/Zion | Found Prototype Device 19002 | -6/Zion | Identified Mobile Refinery Mk. CCLXVII 19155 | -6/Zion | Discovered new exit (range 15) 19364 | -6/Zion | Learned location of Extension (-5) 19516 | -6/Zion | Given the Hacking Drone Bay 19516 | -6/Zion | Found Prototype Device 19539 | -6/Zion | Identified Hacking Drone Bay 19621 | -6/Zion | Learned Factory emergency access door positions 19677 | -6/Zion | Learned Factory fabricator intel 20347 | -6/Zion | Found CR-A16's Pointy Stick 21635 | -6/Zion | Discovered new exit (range 7) 21642 | -6/Zion | Saw the warning signs outside the Deep Caves entrance 21649 | -6/Zion | Entered Deep Caves 21703 | -6/Deep Caves | Found Surveybot 24 Chip 21706 | -6/Deep Caves | Found Surveybot 24 Scanner 22558 | -6/Deep Caves | Attacked by Z-Imprinter 22586 | -6/Deep Caves | Destroyed Z-Imprinter 22612 | -6/Deep Caves | Lost 4 parts (1n3w) 22698 | -6/Deep Caves | Build established: Derelict-Tank 23001 | -6/Deep Caves | Found Prototype Device 23001 | -6/Deep Caves | Identified Zio. Metafield Generator 23009 | -6/Deep Caves | Found Prototype Protection 23009 | -6/Deep Caves | Identified Zio. Weapon Casing 23361 | -6/Deep Caves | Z-Facility disabled 23362 | -6/Deep Caves | Build established: Hauler-Tank 24295 | -6/Deep Caves | Discovered new exit (range 7) 24359 | -6/Deep Caves | Build established: Hauler-Mutant 24690 | -6/Deep Caves | Found Prototype Protection 24702 | -6/Deep Caves | Identified Zio. Heavy Carapace 25215 | -6/Deep Caves | Spotted as-85646 25217 | -6/Deep Caves | Destroyed as-85646 25408 | -6/Deep Caves | Exposed GOLEM chamber 25414 | -6/Deep Caves | Found GOLEM Unit 25871 | -6/Deep Caves | Spotted as-12931 25905 | -6/Deep Caves | Destroyed as-12931 25912 | -6/Deep Caves | Found GOLEM Unit 25933 | -6/Deep Caves | Lost 7 parts (1n4u2w) 26170 | -6/Deep Caves | Build established: Hacker-Mutant 26175 | -6/Deep Caves | Triggered Deep Caves wall 26176 | -6/Deep Caves | Found Superbattery 26206 | -6/Deep Caves | Spotted AS-99397 26210 | -6/Deep Caves | Spotted AS-14874 26213 | -6/Deep Caves | Destroyed AS-14874 26218 | -6/Deep Caves | Destroyed 34 combat bots 26223 | -6/Deep Caves | Destroyed AS-99397 26329 | -6/Deep Caves | Destroyed 16 combat bots 26385 | -6/Deep Caves | Found GOLEM Unit 26826 | -6/Deep Caves | Entered Proximity Caves 26840 | -5/Proximity Caves | Learned location of Armory (-4) 26849 | -5/Proximity Caves | Build established: Hauler-Golem 27522 | -5/Proximity Caves | Learned location of Warlord (-4) 27797 | -5/Proximity Caves | Discovered exit to Factory (range 11) 27866 | -5/Proximity Caves | Core integrity fell below 50% 27894 | -5/Proximity Caves | Destroyed 7 combat bots 28256 | -5/Proximity Caves | Entered Factory 28256 | -5/Factory | Evolved 2 slots: Utility x2 28257 | -5/Factory | Identified exit to Upper Caves 28257 | -5/Factory | Identified exit to Extension 28259 | -5/Factory | Loaded intel: 6 fabricator locations 28317 | -5/Factory | Identified Ghost Barrier 28406 | -5/Factory | Fabricated Exp. Terrain Scanner? 28539 | -5/Factory | Fabricated Mni. Smartbomb Launcher (x1) 28614 | -5/Factory | Build established: Hacker-Golem 28639 | -5/Factory | Fabricated Exp. Sensor Array? 28870 | -5/Factory | Local fabrication network quarantined 29174 | -5/Factory | Entered Extension 29259 | -5/Extension | Rescued A7 29386 | -5/Extension | Build established: Hauler-Golem 29476 | -5/Extension | Spotted B-75 Beast 29507 | -5/Extension | Spotted B-75 Beast 29510 | -5/Extension | Allies destroyed B-75 Beast 29514 | -5/Extension | Destroyed B-75 Beast 29740 | -5/Extension | Rescued a captive Derelict 29845 | -5/Extension | Build established: Scavenger-Skirmisher 30041 | -5/Extension | Discovered new exit (range 16) 30043 | -5/Extension | Discovered new exit (range 15) 30077 | -5/Extension | Entered Cetus 30077 | -5/Cetus | Accompanied by 5 allies (A7) 30082 | -5/Cetus | Acquired a Cetus Manufacturing Module code from A7 30109 | -5/Cetus | Spotted Cetus Guard 30111 | -5/Cetus | Spotted Cetus Guard 30116 | -5/Cetus | Destroyed Cetus Guard 30121 | -5/Cetus | Allies destroyed Cetus Guard 30143 | -5/Cetus | Destroyed A7 30154 | -5/Cetus | Extracted ID and sensor layout for unrecognized location from A7's data core 30265 | -5/Cetus | Started Cetus Manufacturing Module 30290 | -5/Cetus | Manufactured an Enhanced Grunt 30305 | -5/Cetus | Cetus Manufacturing Module disabled 30349 | -5/Cetus | Discovered new exit (range 16) 30383 | -5/Cetus | Entered Archives 30383 | -5/Archives | Accompanied by 1 ally 30595 | -5/Archives | Discovered new exit (range 16) 30704 | -5/Archives | Discovered new exit (range 16) 30729 | -5/Archives | Build established: Scavenger-Tank 30926 | -5/Archives | Discovered new exit (range 15) 31358 | -5/Archives | Entered Hub_04(d) 31420 | -5/Hub_04(d) | Identified exit to Factory 31669 | -5/Hub_04(d) | Network Hub disabled 31677 | -5/Hub_04(d) | Network Hub disabled 31683 | -5/Hub_04(d) | Entered Factory 31683 | -4/Factory | Accompanied by 1 ally 31683 | -4/Factory | Evolved 2 slots: Power x1, Utility x1 31732 | -4/Factory | Identified exit to Research 31822 | -4/Factory | Identified Deep Network Scanner 31876 | -4/Factory | Fabricated Graviton Cannon? 31904 | -4/Factory | Identified exit to Upper Caves 31904 | -4/Factory | Identified exit to Armory 31904 | -4/Factory | Central database locked down 32025 | -4/Factory | Build established: Hacker-Skirmisher 32105 | -4/Factory | Entered Armory 32230 | -4/Armory | Found Prototype Launcher 32230 | -4/Armory | Identified Com. Tesla Bomb Launcher 32235 | -4/Armory | Found Com. Tesla Bomb Launcher 32238 | -4/Armory | Found Com. Tesla Bomb Launcher 32611 | -4/Armory | Discovered exit to Research (range 23) 32688 | -4/Armory | Build established: Hacker-Golem 32812 | -4/Armory | Fabricated Mni. Smartbomb Launcher (x1) 32848 | -4/Armory | Fabricated Imp. Utility Shielding (x2) 33006 | -4/Armory | Discovered exit to Research (range 24) 33044 | -4/Armory | Discovered new exit (range 30) 33204 | -4/Armory | Fabricated Exp. Terrain Scan Processor (x1) 33273 | -4/Armory | Central database locked down 33276 | -4/Armory | Assisted by bots powering up and referring to "LRC-V3" 33441 | -4/Armory | Entered Lab 33443 | -4/Lab | Discovered exit to Research (range 9) 33468 | -4/Lab | Hidden lab's door opened automatically 33468 | -4/Lab | Sensor layout match revealed 33469 | -4/Lab | Gained access to the hidden lab's interior 33733 | -4/Lab | Build established: Hacker-Mutant 33879 | -4/Lab | Found Prototype Hackware 33887 | -4/Lab | Found Prototype Device 33921 | -4/Lab | Found Core Expander 33921 | -4/Lab | Installed Core Expander, added new Power slot 33940 | -4/Lab | Found Alien Artifact 33940 | -4/Lab | Identified Integrated Reactor 33940 | -4/Lab | Installed Integrated Reactor, increased core energy generation (+10) 33949 | -4/Lab | Found Alien Artifact 34592 | -4/Lab | Found Alien Artifact 34663 | -4/Lab | Entered Research 34663 | -3/Research | Evolved 2 slots: Propulsion x1, Utility x1 34702 | -3/Research | Identified exit to Testing 34702 | -3/Research | Identified exit to Research 34702 | -3/Research | Identified AEGIS Remote Shield 34965 | -3/Research | Entered another Research area 34965 | -2/Research | Evolved 2 slots: Utility x2 34972 | -2/Research | Identified Quantum Router 35038 | -2/Research | Identified exit to Quarantine 35276 | -2/Research | Identified exit to Access 35674 | -2/Research | Destroyed 7 combat bots 35715 | -2/Research | First assault squad dispatched 35888 | -2/Research | Destroyed 13 combat bots 35950 | -2/Research | Destroyed 13 combat bots 36056 | -2/Research | Build established: Wizard-Assassin 36072 | -2/Research | Identified Core Reset Matrix 36072 | -2/Research | Identified Transdimensional Reconstructor 36072 | -2/Research | Used Core Reset Matrix 36285 | -2/Research | Entered Quarantine 36286 | -2/Quarantine | Maximum security lockdown engaged 36286 | -2/Quarantine | Detected hypermatrix surge 36286 | -2/Quarantine | Sensed 12 artifacts in vicinity 36327 | -2/Quarantine | Found Terrabomb 36416 | -2/Quarantine | Spotted Executioner 36416 | -2/Quarantine | Spotted Executioner 36418 | -2/Quarantine | Spotted Executioner 36418 | -2/Quarantine | Spotted Striker 36419 | -2/Quarantine | Spotted Executioner 36420 | -2/Quarantine | Destroyed Executioner 36423 | -2/Quarantine | Destroyed Executioner 36423 | -2/Quarantine | Destroyed Executioner 36425 | -2/Quarantine | Destroyed Striker 36427 | -2/Quarantine | Destroyed Executioner 36471 | -2/Quarantine | DAS Turret deployed 36484 | -2/Quarantine | Destroyed 25 combat bots 36511 | -2/Quarantine | Spotted Alpha 7 36514 | -2/Quarantine | Destroyed Investigator 36542 | -2/Quarantine | Destroyed 25 combat bots 36546 | -2/Quarantine | Allies destroyed Alpha 7 36661 | -2/Quarantine | Spotted Striker 36663 | -2/Quarantine | Destroyed Executioner 36664 | -2/Quarantine | Destroyed Striker 36669 | -2/Quarantine | System corruption reached 10% 36671 | -2/Quarantine | Spotted Striker 36672 | -2/Quarantine | Destroyed Striker 36693 | -2/Quarantine | Destroyed Executioner 36695 | -2/Quarantine | Destroyed Executioner 36736 | -2/Quarantine | Destroyed 30 combat bots 36769 | -2/Quarantine | Found Sigix Terminator 36855 | -2/Quarantine | Spotted Investigator 36855 | -2/Quarantine | Spotted Striker 36857 | -2/Quarantine | Destroyed Investigator 36861 | -2/Quarantine | Destroyed Striker 36878 | -2/Quarantine | Spotted Executioner 36878 | -2/Quarantine | Spotted Executioner 36881 | -2/Quarantine | Spotted Striker 36885 | -2/Quarantine | Destroyed Executioner 36886 | -2/Quarantine | Destroyed Executioner 36892 | -2/Quarantine | System corruption reached 30% 36898 | -2/Quarantine | Destroyed Striker 36902 | -2/Quarantine | Sterilization system engaged 36902 | -2/Quarantine | Non-combat units ordered to evacuate 36933 | -2/Quarantine | Destroyed 41 combat bots 36934 | -2/Quarantine | Lost 4 parts (2n2u) 37002 | -2/Quarantine | Combat units ordered to evacuate 37112 | -2/Quarantine | Found Core Reset Matrix 37114 | -2/Quarantine | Sensed 9 artifacts in vicinity 37159 | -2/Quarantine | Discovered exit to Access (range 7) 37194 | -2/Quarantine | Found Hpw. Transdimensional Reconstructor 37202 | -2/Quarantine | Ambient heat levels rising (+10) 37251 | -2/Quarantine | Found Transdimensional Reconstructor 37254 | -2/Quarantine | Found Transdimensional Reconstructor 37256 | -2/Quarantine | Found Hpw. Transdimensional Reconstructor 37269 | -2/Quarantine | Found Dimensional Node Initializer 37272 | -2/Quarantine | Found Dimensional Node Initializer 37348 | -2/Quarantine | Found Core Stripper 37352 | -2/Quarantine | Ambient heat levels rising (+10) 37466 | -2/Quarantine | Crushed by falling debris 37502 | -2/Quarantine | Ambient heat levels rising (+10) 37565 | -2/Quarantine | Found Phase Armor 37652 | -2/Quarantine | Ambient heat levels rising (+10) 37802 | -2/Quarantine | Ambient heat levels rising (+10) 37949 | -2/Quarantine | Spotted Fortress 37952 | -2/Quarantine | Ambient heat levels rising (+10) 38017 | -2/Quarantine | Destroyed Fortress 38024 | -2/Quarantine | Found Prototype Device 38024 | -2/Quarantine | Identified Thermal Barrier 38036 | -2/Quarantine | Found Unknown Device 38036 | -2/Quarantine | Identified Antimissile System 38041 | -2/Quarantine | Found Unknown Protection 38041 | -2/Quarantine | Identified Hvy. Insulated Plating 38045 | -2/Quarantine | Found Prototype Device 38045 | -2/Quarantine | Identified Exp. Force Field 38056 | -2/Quarantine | Found Prototype Device 38056 | -2/Quarantine | Identified EM Dispersion Field 38102 | -2/Quarantine | Ambient heat levels rising (+10) 38199 | -2/Quarantine | Discovered new exit (range 6) 38252 | -2/Quarantine | Ambient heat levels rising (+10) 38402 | -2/Quarantine | Ambient heat levels rising (+10) 38467 | -2/Quarantine | Entered Section 7 38468 | -2/Section 7 | Maximum security lockdown engaged 38468 | -2/Section 7 | Sensed 22 artifacts in vicinity 38490 | -2/Section 7 | Found Integrated Reactor 38490 | -2/Section 7 | Installed Integrated Reactor, increased core energy generation (+10) 38527 | -2/Section 7 | Found Integrated Dissipator 38527 | -2/Section 7 | Installed Integrated Dissipator, increased core heat dissipation (+20) 38595 | -2/Section 7 | Found Integrity Redistributor 38631 | -2/Section 7 | Used Integrity Redistributor, redistributed integrity from core (-253) 38671 | -2/Section 7 | Destroyed 26 combat bots 38713 | -2/Section 7 | Spotted Executioner 38714 | -2/Section 7 | Spotted Striker 38722 | -2/Section 7 | Destroyed Striker 38722 | -2/Section 7 | Destroyed Executioner 38752 | -2/Section 7 | Destroyed 12 combat bots 38753 | -2/Section 7 | Destroyed Investigator 38754 | -2/Section 7 | Spotted Executioner 38760 | -2/Section 7 | Destroyed Executioner 38794 | -2/Section 7 | Destroyed 9 combat bots 38876 | -2/Section 7 | Destroyed Executioner 38885 | -2/Section 7 | Spotted Striker 38887 | -2/Section 7 | Destroyed Striker 38893 | -2/Section 7 | Spotted Executioner 38896 | -2/Section 7 | Destroyed Executioner 38937 | -2/Section 7 | Destroyed 33 combat bots 39086 | -2/Section 7 | Spotted Striker 39092 | -2/Section 7 | Spotted Striker 39094 | -2/Section 7 | Spotted Executioner 39094 | -2/Section 7 | Destroyed Striker 39106 | -2/Section 7 | Destroyed Executioner 39112 | -2/Section 7 | Destroyed Striker 39131 | -2/Section 7 | Sterilization system engaged 39131 | -2/Section 7 | Non-combat units ordered to evacuate 39142 | -2/Section 7 | Destroyed 43 combat bots 39231 | -2/Section 7 | Combat units ordered to evacuate 39329 | -2/Section 7 | Spotted S7 Guard 39344 | -2/Section 7 | Destroyed S7 Guard 39370 | -2/Section 7 | Found Integrated Heat Negator 39370 | -2/Section 7 | Installed Integrated Heat Negator, increased core heat dissipation (+40) 39396 | -2/Section 7 | Found Prototype Protection 39396 | -2/Section 7 | Identified Hvy. Regenerative Plating 39431 | -2/Section 7 | Ambient heat levels rising (+10) 39488 | -2/Section 7 | Discovered exit to Access (range 25) 39503 | -2/Section 7 | Found Integrated Reactor 39503 | -2/Section 7 | Installed Integrated Reactor, increased core energy generation (+10) 39581 | -2/Section 7 | Ambient heat levels rising (+10) 39621 | -2/Section 7 | Build established: Generator-Mutant 39731 | -2/Section 7 | Ambient heat levels rising (+10) 39785 | -2/Section 7 | Found Matter Drive 39797 | -2/Section 7 | Found Matter Drive 39829 | -2/Section 7 | Found Hpw. Transdimensional Reconstructor 39833 | -2/Section 7 | Found Hpw. Transdimensional Reconstructor 39881 | -2/Section 7 | Ambient heat levels rising (+10) 39954 | -2/Section 7 | Found Sigix Quantum Sheargun 39959 | -2/Section 7 | Found Sigix Quantum Sheargun 39962 | -2/Section 7 | Found Sigix Quantum Sheargun 40031 | -2/Section 7 | Ambient heat levels rising (+10) 40119 | -2/Section 7 | Spotted B-99 Colossus 40176 | -2/Section 7 | Found Integrated Dissipator 40176 | -2/Section 7 | Installed Integrated Dissipator, increased core heat dissipation (+20) 40181 | -2/Section 7 | Ambient heat levels rising (+10) 40239 | -2/Section 7 | Found Core Reset Matrix 40241 | -2/Section 7 | Sensed 13 artifacts in vicinity 40307 | -2/Section 7 | Found LRC Energy Well 40307 | -2/Section 7 | Installed LRC Energy Well, increased energy storage capacity (+250) 40310 | -2/Section 7 | Found LRC Boosters 40310 | -2/Section 7 | Installed LRC Boosters, increased mass support (+10) 40331 | -2/Section 7 | Ambient heat levels rising (+10) 40423 | -2/Section 7 | Warped through subspace 40424 | -2/Section 7 | Core integrity fell below 50% 40432 | -2/Section 7 | Spotted S7 Guard 40449 | -2/Section 7 | Destroyed S7 Guard 40464 | -2/Section 7 | Found Core Membrane 40464 | -2/Section 7 | Installed Core Membrane, gained immunity to corruption 40481 | -2/Section 7 | Ambient heat levels rising (+10) 40631 | -2/Section 7 | Ambient heat levels rising (+10) 40769 | -2/Section 7 | Found Unknown Device 40769 | -2/Section 7 | Identified Antimissile System 40781 | -2/Section 7 | Ambient heat levels rising (+10) 40849 | -2/Section 7 | Build established: Alien-Mutant 40931 | -2/Section 7 | Ambient heat levels rising (+10) 41081 | -2/Section 7 | Ambient heat levels rising (+10) 41188 | -2/Section 7 | Discovered exit to Access (range 20) 41231 | -2/Section 7 | Ambient heat levels rising (+10) 41306 | -2/Section 7 | Found Prototype Processor 41319 | -2/Section 7 | Identified Exp. Signal Interpreter 41375 | -2/Section 7 | Entered Access 41375 | -1/Access | Evolved 1 slot: Utility x1 41480 | -1/Access | Identified exit to Surface 41625 | -1/Access | First assault squad dispatched 41645 | -1/Access | Garrison activated, responded to threat 41646 | -1/Access | High security lockdown imminent 41690 | -1/Access | Destroyed 15 combat bots 41726 | -1/Access | High security lockdown engaged 41932 | -1/Access | Destroyed 9 combat bots 41942 | -1/Access | Destroyed Investigator 41993 | -1/Access | Destroyed 20 combat bots 42054 | -1/Access | Build established: Alien-Tank 42104 | -1/Access | Spotted Executioner 42104 | -1/Access | Spotted Executioner 42104 | -1/Access | Spotted Striker 42106 | -1/Access | Destroyed Striker 42107 | -1/Access | Destroyed Executioner 42108 | -1/Access | Destroyed Executioner 42126 | -1/Access | Destroyed Investigator 42149 | -1/Access | Destroyed 10 combat bots 42176 | -1/Access | Destroyed 7 combat bots 42289 | -1/Access | Destroyed 10 combat bots 42294 | -1/Access | Spotted Striker 42301 | -1/Access | Destroyed Striker 42313 | -1/Access | Spotted Investigator 42315 | -1/Access | Destroyed Investigator 42334 | -1/Access | Spotted Striker 42334 | -1/Access | Spotted Executioner 42334 | -1/Access | Spotted Striker 42335 | -1/Access | Destroyed Executioner 42335 | -1/Access | Destroyed Striker 42338 | -1/Access | Destroyed Striker 42372 | -1/Access | Destroyed 16 combat bots 42411 | -1/Access | Spotted Striker 42414 | -1/Access | Destroyed Striker 42414 | -1/Access | Destroyed Striker 42416 | -1/Access | Destroyed Executioner 42416 | -1/Access | Spotted Executioner 42417 | -1/Access | Destroyed Executioner 42443 | -1/Access | Destroyed Executioner 42443 | -1/Access | Destroyed Executioner 42471 | -1/Access | Destroyed 20 combat bots 42528 | -1/Access | Destroyed Executioner 42565 | -1/Access | Spotted Striker 42571 | -1/Access | Destroyed Striker 42574 | -1/Access | Sterilization system engaged 42584 | -1/Access | Spotted Executioner 42585 | -1/Access | Destroyed Executioner 42585 | -1/Access | Spotted Executioner 42585 | -1/Access | Spotted Executioner 42589 | -1/Access | Destroyed Executioner 42590 | -1/Access | Destroyed Executioner 42622 | -1/Access | Destroyed 30 combat bots 42681 | -1/Access | Spotted Executioner 42684 | -1/Access | Destroyed Executioner 42720 | -1/Access | Destroyed 7 combat bots 42874 | -1/Access | Ambient heat levels rising (+10) 43024 | -1/Access | Ambient heat levels rising (+10) 43174 | -1/Access | Ambient heat levels rising (+10) 43175 | -1/Access | Discovered new exit (range 30) 43224 | -1/Access | Spotted B-99 Colossus 43250 | -1/Access | Destroyed B-99 Colossus 43324 | -1/Access | Ambient heat levels rising (+10) 43334 | -1/Access | Found Prototype Ballistic Gun 43339 | -1/Access | Found Prototype Ballistic Gun 43350 | -1/Access | Spotted B-99 Colossus 43474 | -1/Access | Ambient heat levels rising (+10) 43521 | -1/Access | Destroyed B-99 Colossus 43607 | -1/Access | Identified Multirail (x2) 43611 | -1/Access | Found Multirail 43617 | -1/Access | Found Multirail 43624 | -1/Access | Ambient heat levels rising (+10) 43774 | -1/Access | Ambient heat levels rising (+10) 43831 | -1/Access | Build established: Alien-Mutant 43924 | -1/Access | Ambient heat levels rising (+10) 44074 | -1/Access | Ambient heat levels rising (+10) 44224 | -1/Access | Ambient heat levels rising (+10) 44303 | -1/Access | Found Unknown Protection 44315 | -1/Access | Found Unknown Protection 44355 | -1/Access | Identified Hvy. Reflective Plating 44374 | -1/Access | Ambient heat levels rising (+10) 44385 | -1/Access | Identified Hvy. Insulated Plating 44463 | -1/Access | Entered Command 44548 | -1/Command | Discovered exit to Surface (range 20) 44749 | -1/Command | First assault squad dispatched 44905 | -1/Command | Destroyed 12 combat bots 44914 | -1/Command | High security lockdown imminent 44994 | -1/Command | High security lockdown engaged 45131 | -1/Command | Destroyed 13 combat bots 45229 | -1/Command | Spotted Striker 45229 | -1/Command | Spotted Executioner 45230 | -1/Command | Destroyed Executioner 45232 | -1/Command | Destroyed Striker 45232 | -1/Command | Destroyed Investigator 45239 | -1/Command | Spotted Executioner 45239 | -1/Command | Spotted Executioner 45239 | -1/Command | Spotted Striker 45240 | -1/Command | Destroyed Executioner 45243 | -1/Command | Destroyed Striker 45244 | -1/Command | Destroyed Executioner 45269 | -1/Command | Destroyed 16 combat bots 45361 | -1/Command | Destroyed Striker 45389 | -1/Command | Destroyed 13 combat bots 45389 | -1/Command | Spotted Executioner 45394 | -1/Command | Spotted Executioner 45395 | -1/Command | Destroyed Executioner 45395 | -1/Command | Spotted Striker 45396 | -1/Command | Destroyed Executioner 45398 | -1/Command | Destroyed Striker 45398 | -1/Command | Destroyed Striker 45398 | -1/Command | Spotted Striker 45399 | -1/Command | Destroyed Striker 45423 | -1/Command | Destroyed 11 combat bots 45604 | -1/Command | Spotted Striker 45605 | -1/Command | Destroyed Striker 45606 | -1/Command | Spotted Striker 45622 | -1/Command | Spotted Striker 45623 | -1/Command | Destroyed Striker 45624 | -1/Command | Spotted Executioner 45627 | -1/Command | Destroyed Striker 45629 | -1/Command | Destroyed Executioner 45669 | -1/Command | Destroyed 32 combat bots 45792 | -1/Command | Spotted Striker 45792 | -1/Command | Spotted Striker 45792 | -1/Command | Spotted Striker 45794 | -1/Command | Destroyed Striker 45795 | -1/Command | Destroyed Striker 45797 | -1/Command | Destroyed Striker 45797 | -1/Command | Spotted Executioner 45799 | -1/Command | Destroyed Striker 45800 | -1/Command | Destroyed Executioner 45805 | -1/Command | Spotted Executioner 45806 | -1/Command | Spotted Executioner 45809 | -1/Command | Destroyed Executioner 45810 | -1/Command | Destroyed Executioner 45836 | -1/Command | Spotted Striker 45842 | -1/Command | Destroyed Striker 45872 | -1/Command | Destroyed 41 combat bots 46810 | -1/Command | Phase Generator disabled 47091 | -1/Command | Build established: Alien-Tank 47797 | -1/Command | Build established: Alien-Bomber 48177 | -1/Command | Build established: Alien-Mutant 48617 | -1/Command | Build established: Alien-Bomber 49586 | -1/Command | Destroyed 35 combat bots 49683 | -1/Command | Destroyed 27 combat bots 49944 | -1/Command | Destroyed 32 combat bots 50331 | -1/Command | Build established: Alien-Mutant 50393 | -1/Command | Destroyed 42 combat bots 50698 | -1/Command | Destroyed 45 combat bots 50931 | -1/Command | Build established: Alien-Bomber 51128 | -1/Command | Destroyed 17 combat bots 51223 | -1/Command | Destroyed 45 combat bots 51453 | -1/Command | Build established: Alien-Mutant 51623 | -1/Command | Destroyed 10 combat bots 51798 | -1/Command | Build established: Alien-Bomber 52202 | -1/Command | Spotted B-99 Colossus 52223 | -1/Command | Destroyed B-99 Colossus 52310 | -1/Command | Found Multirail 52319 | -1/Command | Found Multirail 52984 | -1/Command | Destroyed 23 combat bots 53143 | -1/Command | Destroyed 25 combat bots 53304 | -1/Command | Destroyed 15 combat bots 53510 | -1/Command | Destroyed 18 combat bots 54896 | -1/Command | Spotted B-99 Colossus 55109 | -1/Command | Found Unknown Device 55113 | -1/Command | Identified Quantum Capacitor 55490 | -1/Command | Found Prototype Launcher 55496 | -1/Command | Identified Enh. Gamma Bomb Array 55507 | -1/Command | Found Enh. Gamma Bomb Array 56568 | -1/Command | Spotted Combat Programmer 56574 | -1/Command | Destroyed M Guard 56575 | -1/Command | Destroyed M Guard 56583 | -1/Command | Spotted Combat Programmer 56587 | -1/Command | Destroyed Combat Programmer 56610 | -1/Command | Destroyed Combat Programmer 56610 | -1/Command | All MAIN.C guards destroyed 56665 | -1/Command | Found AEGIS Remote Shield 56674 | -1/Command | Found AEGIS Remote Shield 56722 | -1/Command | Found Hvy. Regenerative Plating 57146 | -1/Command | Destroyed B-99 Colossus 57647 | -1/Command | Spotted Striker 57648 | -1/Command | Spotted Striker 57654 | -1/Command | Spotted Alpha 7 57654 | -1/Command | Destroyed Striker 57656 | -1/Command | Spotted Executioner 57658 | -1/Command | Spotted Executioner 57659 | -1/Command | Spotted Alpha 7 57663 | -1/Command | Destroyed Striker 57665 | -1/Command | Destroyed Executioner 57671 | -1/Command | Destroyed Executioner 57689 | -1/Command | Destroyed Alpha 7 57709 | -1/Command | Destroyed Alpha 7 57969 | -1/Command | Spotted Executioner 57987 | -1/Command | Destroyed Executioner 57987 | -1/Command | Spotted Executioner 57990 | -1/Command | Destroyed Executioner 57997 | -1/Command | Spotted B-99 Colossus 58065 | -1/Command | Destroyed B-99 Colossus 58265 | -1/Command | Spotted B-99 Colossus 58284 | -1/Command | Destroyed B-99 Colossus 58472 | -1/Command | Found Multirail 58532 | -1/Command | Build established: Scavenger-Bomber 58547 | -1/Command | Found Multirail 58558 | -1/Command | Found Multirail 59715 | -1/Command | Found Prototype Launcher 59721 | -1/Command | Found Prototype Reactor 59724 | -1/Command | Found Hvy. Regenerative Plating 59737 | -1/Command | Found Prototype Reactor 60046 | -1/Command | Found Prototype Reactor 60046 | -1/Command | Identified Zero-point Reactor (x3) 60050 | -1/Command | Found Zero-point Reactor 60303 | -1/Command | Build established: Scavenger-Mutant 60907 | -1/Command | Build established: Scavenger-Bomber 60958 | -1/Command | Met MAIN.C 61000 | -1/Command | 0b10 Conduit disabled 61008 | -1/Command | Destroyed MAIN.C Shell 61010 | -1/Command | MAIN.C activated Command garrisons 61045 | -1/Command | Destroyed MAIN.C 62709 | -1/Command | Found Prototype Ballistic Cannon 63033 | -1/Command | Identified Omega Cannon 63121 | -1/Command | Found Prototype Processor 63121 | -1/Command | Identified Exp. Core Analyzer 63125 | -1/Command | Found Prototype Processor 63125 | -1/Command | Identified Exp. Target Analyzer 63133 | -1/Command | Found Prototype Protection 63133 | -1/Command | Identified Centrium Heavy Armor Plating 63137 | -1/Command | Found Prototype Device 63137 | -1/Command | Identified Adv. Kinecellerator 63324 | -1/Command | Build established: Scavenger-Mutant 63830 | -1/Command | Found Zero-point Reactor 63834 | -1/Command | Found Zero-point Reactor 63859 | -1/Command | Build established: Alien-Mutant 63996 | -1/Command | Found EM Dispersion Field 63999 | -1/Command | Found Zero-point Reactor 64002 | -1/Command | Found Zero-point Reactor 64180 | -1/Command | Discovered exit to Surface (range 7) 64457 | -1/Command | Identified Ragnarok Missile Launcher 65961 | -1/Command | Found Prototype Protection 65964 | -1/Command | Found Prototype Protection 65996 | -1/Command | Found Prototype Processor 66020 | -1/Command | Identified Exp. Powered Armor (x2) 66034 | -1/Command | Identified Exp. Targeting Computer 66607 | -1/Command | Found Adv. Kinecellerator 66613 | -1/Command | Found Exp. Targeting Computer 66627 | -1/Command | Found Exp. Target Analyzer 66935 | -1/Command | Found Multirail 66960 | -1/Command | Found Multirail 68074 | -1/Command | Build established: Alien-Bomber 68345 | -1/Command | Warped through subspace to slip node 68345 | -1/Command | Discovered new exit (range 5) 68355 | -1/Command | Entered Access_0 68356 | -1/Access_0 | Sensed 4 artifacts in vicinity 68358 | -1/Access_0 | Met Architect 68368 | -1/Access_0 | Architect warped through subspace 68382 | -1/Access_0 | Destroyed A8 68409 | -1/Access_0 | Architect warped through subspace 68461 | -1/Access_0 | Architect warped through subspace 68489 | -1/Access_0 | Subspace Access Node disabled 68502 | -1/Access_0 | Architect warped through subspace 68539 | -1/Access_0 | Architect warped through subspace 68577 | -1/Access_0 | Architect warped through subspace 68591 | -1/Access_0 | Found Prototype Protection 68591 | -1/Access_0 | Identified Centrium Linked Plating 68616 | -1/Access_0 | Architect warped through subspace 68645 | -1/Access_0 | Architect warped through subspace 68666 | -1/Access_0 | Architect warped through subspace 68691 | -1/Access_0 | Architect warped through subspace 68720 | -1/Access_0 | Architect warped through subspace 68753 | -1/Access_0 | Architect warped through subspace 68775 | -1/Access_0 | Architect warped through subspace 68795 | -1/Access_0 | Architect warped through subspace 68810 | -1/Access_0 | Architect warped through subspace 68826 | -1/Access_0 | Found Prototype Device 68847 | -1/Access_0 | Architect warped through subspace 68880 | -1/Access_0 | Architect warped through subspace 68907 | -1/Access_0 | Architect warped through subspace 68926 | -1/Access_0 | Architect warped through subspace 68931 | -1/Access_0 | Lost 3 parts (1u2w) 68954 | -1/Access_0 | Architect warped through subspace 68989 | -1/Access_0 | Architect warped through subspace 68994 | -1/Access_0 | Subspace Access Node disabled 69016 | -1/Access_0 | Architect warped through subspace 69040 | -1/Access_0 | Architect warped through subspace 69047 | -1/Access_0 | Found Prototype Device 69047 | -1/Access_0 | Identified Exp. Phase Shifter 69051 | -1/Access_0 | A6 warped into view 69059 | -1/Access_0 | Destroyed A6 69067 | -1/Access_0 | Architect warped through subspace 69090 | -1/Access_0 | Found Exp. Targeting Computer 69106 | -1/Access_0 | Architect warped through subspace 69109 | -1/Access_0 | Found Prototype Device 69109 | -1/Access_0 | Identified Exp. Thermal Shield 69130 | -1/Access_0 | Architect warped through subspace 69156 | -1/Access_0 | Architect warped through subspace 69177 | -1/Access_0 | Architect warped through subspace 69178 | -1/Access_0 | Found Zero-point Reactor 69194 | -1/Access_0 | Architect warped through subspace 69205 | -1/Access_0 | Core integrity fell below 50% 69211 | -1/Access_0 | Architect warped through subspace 69226 | -1/Access_0 | Architect warped through subspace 69230 | -1/Access_0 | Identified Desublimator 69251 | -1/Access_0 | Architect warped through subspace 69272 | -1/Access_0 | Architect warped through subspace 69282 | -1/Access_0 | Architect warped through subspace 69291 | -1/Access_0 | Architect warped through subspace 69299 | -1/Access_0 | Architect warped through subspace 69304 | -1/Access_0 | Architect warped through subspace 69318 | -1/Access_0 | Subspace Access Node disabled 69322 | -1/Access_0 | Architect warped through subspace 69348 | -1/Access_0 | Subspace Access Node disabled 69383 | -1/Access_0 | Found Exp. Targeting Computer 69387 | -1/Access_0 | Found Prototype Device 69387 | -1/Access_0 | Identified Exp. Weapon Cycler 69573 | -1/Access_0 | A5 warped into view 69600 | -1/Access_0 | Build established: Scavenger-Bomber 69637 | -1/Access_0 | Destroyed A5 69764 | -1/Access_0 | Found Exp. Powered Armor 69860 | -1/Access_0 | Found Exp. Weapon Cycler 69997 | -1/Access_0 | Destroyed A2 70010 | -1/Access_0 | Extracted Singularity Gate Test 138-C access codes from A2's data core 70302 | -1/Access_0 | Singularity Gate disabled 70437 | -1/Access_0 | A4 warped into view 70460 | -1/Access_0 | Destroyed A4 70486 | -1/Access_0 | Found Core Regenerator 70486 | -1/Access_0 | Used Core Regenerator, restored core integrity (+400) 70863 | -1/Access_0 | Found Exp. Powered Armor 70866 | -1/Access_0 | Found Exp. Powered Armor 71730 | -1/Access_0 | Found Sigix Corpse 71979 | -1/Access_0 | A3 warped into view 72304 | -1/Access_0 | Destroyed A3 74133 | -1/Access_0 | Destroyed Architect 74136 | -1/Access_0 | Extracted unknown sensor trigger ID from Architect's data core 74151 | -1/Access_0 | Found Prototype Hackware 74151 | -1/Access_0 | Identified Architect God Chip A 74158 | -1/Access_0 | Warped through subspace to slip node 74158 | -1/Access_0 | Discovered exit to Surface (range 8) 74172 | *** | Heading to fleet! Last Messages --------------- 74131_ Slug penetrates Architect. 74131_ Slug penetrates Wall. 74131_ Slug penetrates Architect. 74131_ Slug penetrates Wall. 74133_ Slug penetrates Architect. 74133_ Slug penetrates Wall. 74133_ Slug penetrates Architect. 74133_ Architect: "Defeated by a malfunctioning replica of a piece of alien starship?! You've got*fzzt* be kiddi*bzzz*" 74133_ Architect destroyed. 74133_ Slug penetrates Wall. 74136_ Acquired data core, extracted unknown sensor trigger ID. 74138_ Acquired 36 matter. 74147_ Dropped Desublimator. 74151_ Acquired Prototype Hackware. 74151_ Identified Architect God Chip A. 74153_ Discarded Architect God Chip A. 74157_ Acquired Desublimator. 74158_ Warped through subspace, drawn to slip node. 74158_ EXIT=FOUND: SURFACE Map ----- +----------------------------------------------------+ | | | | | | | | | | | | | | | | | | | | | | | | | | | | | | | | | ?????????????????????????????????????????????????? | | ?????????????????????????????????????????????????? | | ?????????????????????????????????????????????????? | | ?????????????????????????????????????????????????? | | ?????????????????????????????????????????????????? | | ?????????????????????????????????????????????????? | | ????????????????????????###??????????????????????? | | ???????????????????????## ##?????????????????????? | | ???????????????????????# #?????????????????????? | | ???????????????????????# @ #?????????????????????? | | ??????????????????????## #?????????????????????? | | ??????????????????????# #?????????????????????? | | ??????????????????????# ##?????????????????????? | | ??????????????????????## #?????????????????????? | | ??????????????????????# #?????????????????????? | | ??????????????????????# ##?????????????????????? | | ??????????????????????# < #?????????????????????? | | ??????????????????????# ##?????????????????????? | | ??????????????????????## #??????????????????????? | | ???????????????????????####??????????????????????? | | ?????????????????????????????????????????????????? | | ?????????????????????????????????????????????????? | | ?????????????????????????????????????????????????? | | ?????????????????????????????????????????????????? | | ?????????????????????????????????????????????????? | | ?????????????????????????????????????????????????? | | ?????????????????????????????????????????????????? | | ?????????????????????????????????????????????????? | | ?????????????????????????????????????????????????? | | ?????????????????????????????????????????????????? | | ?????????????????????????????????????????????????? | | ?????????????????????????????????????????????????? | | ?????????????????????????????????????????????????? | | ?????????????????????????????????????????????????? | +----------------------------------------------------+ Best States ------------- Heat Dissipation 205 Coolant Potential 100 Energy Generation 119 Energy Capacity 4100 Matter Stores 800 Matter Capacity 800 Sight Range 23 Robot Scan Range 30 Terrain Scan Range 30 Terrain Scan Density 2010 Jamming Range 16 Cloak Strength 4 Additional Mass Support 10 Armor Coverage 2600 Resistance: KI 30 Resistance: TH 30 Resistance: EX 50 Resistance: EM 90 Resistance: I 15 Resistance: S 15 Resistance: P 15 Core Shielding 30 Utility Shielding 66 Weapon Shielding 100 Point Defense Rating 240 Weapon Cycling 30 Melee Speed Boost 20 Phase Shifting 20 Evasion (%) 60 Targeting Accuracy 36 Target Analysis 12 Core Analysis 15 Armor Integrity Analysis 66 Recoil Reduction 4 Matter Filtering 30 Kinecelleration 50 Overload Amplification 100 Salvage Targeting 4 Offensive Hacking 37 Defensive Hacking 45 Item Schematics ----------------- None Robot Schematics ------------------ None Fabricated ------------ Adv. Actuator Array | x1 | -7/Factory Lrn. Sensor Array | x1 | -7/Factory Exp. Terrain Scanner | x1 | -5/Factory Mni. Smartbomb Launcher | x1 | -5/Factory Exp. Sensor Array | x1 | -5/Factory Graviton Cannon | x1 | -4/Factory | Preloaded Mni. Smartbomb Launcher | x1 | -4/Armory Imp. Utility Shielding | x2 | -4/Armory Exp. Terrain Scan Processor | x1 | -4/Armory Alien Tech Used ----------------- Core Expander Integrated Reactor Core Reset Matrix Core Stripper Phase Armor Integrated Dissipator Integrity Redistributor Integrated Heat Negator Matter Drive LRC Energy Well LRC Boosters High-powered Transdimensional Reconstructor Core Membrane Sigix Quantum Sheargun Core Regenerator Achievements -------------- None Challenges ------------ None Game ------ Seed RagnarokSalvageVibroblade Manual? 0 Play Time 09:02:16 Cumulative 1818.4 hours Start 2020.11.15 @ 15:59:31 End 2020.11.16 @ 17:57:52 Sessions 15 Manual Loads 0 Difficulty Rogue Special Mode None Game No. 2514 Rogue 2506 Adventurer 0 Explorer 8 Win Type 2 Total 181 Types 41/24/73/3/3/5/29/2/1 Lore% 99 Gallery% 99 Achievement% 100 Wizard Run 0 Options --------- ASCII 0 Keyboard 1 Movement Numpad Keybinds 1 Fullscreen 1 Font 18/SmallcapsGlow Map View 76x50 Tactical HUD 1 Map Filters NONE Filters NONE Steam 1 RUN: 85685c26-af70-4c0b-9083-21c353990b76